Workbook

Sheet General
B1: Please enter the data in white cells
B2: LTC4284 Design Tool
A4: 1 | B4: System Specifications
B5: Power Requirement (W) | C5: 1900 | D5: W
B6: Line Step | C6: No | D6: Yes | E6: No
B7: Voltage Supply Min (V) | C7: -40 | D7: V | E7: =ABS(C7) -> 40
B8: Voltage Supply Max (V) | C8: -70 | D8: V | E8: =ABS(C8) -> 70
B9: Nominal Voltage | C9: -48 | D9: V | E9: =ABS(C9) -> 48
B10: Step Voltage | C10: =ABS(C8)-ABS(C7) -> 30 | D10: V
B12: Topology Recommendations
B13: Recommended Topology | C13: =IF(C5<800,"LTC4283",(IF((C5>800)*AND(C5<=1500),"LTC4284 Parallel Topology",(IF((C5>1500)*AND(C6="yes"),"LTC4284 High Stress Staged Start Topology",(IF((C5>1500)*AND(C6="no"),"LTC4284 Low Stress Staged Start Topology"))))))) -> LTC4284 Low Stress Staged Start Topology
B14: Topology Selected | C14: LTC4284 Low Stress Staged Start Topology | F14: Single | G14: Parallel
B15: =IF(C13=C14,"","The selected topology is not the recommended one for this system. You may not see all the cost and system reliability benefits in the selected topology") -> 
B17: Recommended Minimum Output Capacitor Value | C17: =C5 -> 1900 | D17: uF
B18: Selected Output Capacitor Value | C18: 1900 | D18: uF
B19: Tolerance | C19: 5 | D19: %
C20: Min | D20: Typ | E20: Max
B21: Actual Output Capacitor Value | C21: =C18-(C19/100*C18) -> 1805 | D21: =C18 -> 1900 | E21: =C18+(C18*C19/100) -> 1995 | F21: uF
B22: =IF(C17<=C18,"","A higher value output is recommended for this power level") -> 
B23: =_xlfn.CONCAT("Go to ",C14," tab to design the channel") -> Go to LTC4284 Low Stress Staged Start Topology tab to design the channel
B25: Selecting Rin
B27: Current drawn by External Components from INTVcc | C27: 10 | D27: mA
B28: =IF(C27>30,"If current drawn by external components is >30mA, use external NPN between VIN and VZ pins. Refer to Input Power Supply section in the datasheet","") -> 
B29: Rin should be less than | C29: =(ABS(E7)-SpecSheet!I9)/(SpecSheet!I10+C27) -> 2 | D29: kΩ
B30: Selected Resistor Value | C30: 1 | D30: kΩ
B31: Power Rating of the Selected Resistor | C31: 0.5 | D31: W
B32: Resistor Tolerance | C32: E96 (1%)
B33: Resistor Tolerance Selected | C33: =Q46 -> 1 | D33: %
B34: Allowed Power Disspiation In the Resistor Network | C34: 0.5 | D34: W
B35: Number of Resistors Required | C35: =IF(INT(((C27+General!I10)/1000)*SQRT(C30*1000/C34))>1,INT(((C27+General!I10)/1000)*SQRT(C30*1000/C34)),1) -> 1
B36: Number of Resistors Installed | C36: 4
B37: =IF(OR((C35<C36),(C35=C36)),"","Number of resistors installed are less than the required resistors. Power Dissipation in them will be higher than the desired power dissipation. Please increase the number of resistors") -> 
C38: Min | D38: Typ | E38: Max
B39: Actual resistance | C39: =(D39-(C33*D39/100)) -> 0.2475 | D39: =ROUND(C30/C36,3) -> 0.25 | E39: =(D39+(C33*D39/100)) -> 0.2525 | F39: kΩ
B40: =IF(E39>C29,"Effective Rin is more than the allowed value of Rin. Select a lower value of Rin","") -> 
B41: Power Dissipation in each resistor | C41: =((($C$27+SpecSheet!G10)/General!$C$36)^2)*General!C39/1000 -> 0.001546875 | D41: =((($C$27+SpecSheet!H10)/General!$C$36)^2)*General!D39/1000 -> 0.00244140625 | E41: =((($C$27+SpecSheet!I10)/General!$C$36)^2)*General!E39/1000 -> 0.003093125 | F41: kΩ
B43: =IF(E39>=C29,"Maximum Rin value is higher than allowed maximum Rin. Change the value of Rin resistor network","") -> 
K45: E96 (1%) | L45: 96 | M45: 1 | N45: =IF($C$32=K45,1,0) -> 1 | P45: Active E | Q45: active %
A46: 2 | B46: Undervoltage Overvoltage Threshold Set up | K46: E192 (0.5%) | L46: 192 | M46: 0.5 | N46: =IF($C$32=K46,1,0) -> 0 | P46: =IF(N45=1,96,192) -> 96 | Q46: =IF(N45=1,M45,IF(N46=1,M46,IF(N47=1,M47,IF(N48=1,M48,1)))) -> 1
K47: E192 (0.25%) | L47: 192 | M47: 0.25 | N47: 0
K48: E192 (0.1%) | L48: 192 | M48: 0.1 | N48: 0
B49: UV Falling | C49: 38.6 | D49: V
B50: OV Rising | C50: 71.9 | D50: V
B52: Three Resistor Ladder
B53: Ladder Current | C53: 100 | D53: uA
B54: R1+R2+R3 | C54: =E9/C53*10^3 -> 480 | D54: kΩ
B55: R1 | C55: =SpecSheet!H13*C54/C50 -> 9.386369958 | D55: kΩ
B56: R2 | C56: =(SpecSheet!H12*C54/C49)-C55 -> 13.40741243 | D56: kΩ
B57: R3 | C57: =C54-C55-C56 -> 457.2062176 | D57: kΩ | M57: Resistor Power Rating
M58: 0.05
B59: Recommended Standard Resistor Values | M59: 0.062
B60: R1 | C60: =ROUND(10^(ROUND((LOG10(C55)-INT(LOG10(C55)))*$P$46,0)/$P$46),2)*10^(INT(LOG10(C55))) -> 9.31 | D60: kΩ | M60: 0.1
B61: R2 | C61: =ROUND(10^(ROUND((LOG10(C56)-INT(LOG10(C56)))*$P$46,0)/$P$46),2)*10^(INT(LOG10(C56))) -> 13.3 | D61: kΩ | M61: 0.125
B62: R3 | C62: =ROUND(10^(ROUND((LOG10(C57)-INT(LOG10(C57)))*$P$46,0)/$P$46),2)*10^(INT(LOG10(C57))) -> 453 | D62: kΩ | M62: 0.25
M63: 0.5
B64: Selected Standard Resistor Values | M64: 1
B65: R1 | C65: 10 | D65: kΩ
B66: R2 | C66: 14.3 | D66: kΩ
B67: R3 | C67: 487 | D67: kΩ
B68: Resistor Tolerance | C68: E96 (1%)
B69: Resistor Tolerance Selected | C69: =Q76 -> 1 | D69: %
B70: Power Rating of the Resistors | C70: 0.125 | D70: W
B71: =IF((((C53/1000)^2*C65)>C70)*OR(((C53/1000)^2*C66)>C70)*OR(((C53/1000)^2*C67)>C70),"Power dissipation in the resistors is more than the power rating of the resistor. Select a higher power rated resistor or decrease the current in resistor ladder","") -> 
B72: Actual Resistor Values
C73: Min | D73: Typ | E73: Max
B74: R1 | C74: =C65-(C65*$C$69/100) -> 9.9 | D74: =C65 -> 10 | E74: =C65+(C65*$C$69/100) -> 10.1 | F74: kΩ
B75: R2 | C75: =C66-(C66*$C$69/100) -> 14.157 | D75: =C66 -> 14.3 | E75: =C66+(C66*$C$69/100) -> 14.443 | F75: kΩ | K75: E96 (1%) | L75: 96 | M75: 1 | N75: =IF($C$68=K75,1,0) -> 1 | P75: Active E | Q75: active %
B76: R3 | C76: =C67-(C67*$C$69/100) -> 482.13 | D76: 487 | E76: =C67+(C67*$C$69/100) -> 491.87 | F76: kΩ | K76: E192 (0.5%) | L76: 192 | M76: 0.5 | N76: =IF($C$68=K76,1,0) -> 0 | P76: =IF(N75=1,96,192) -> 96 | Q76: =IF(N75=1,M75,IF(N76=1,M76,IF(N77=1,M77,IF(N78=1,M78,1)))) -> 1
K77: E192 (0.25%) | L77: 192 | M77: 0.25 | N77: 0
B78: Actual Threshold | K78: E192 (0.1%) | L78: 192 | M78: 0.1 | N78: 0
B79: UV Falling | C79: =SpecSheet!G12*(E74+C76+E75)/(E74+E75) -> 37.46940044 | D79: =SpecSheet!H12*(D74+D75+D76)/(D74+D75) -> 38.5684321 | E79: =SpecSheet!I12*(C74+E76+C75)/(C74+C75) -> 39.69659047 | F79: V
B80: UV Rising | C80: =SpecSheet!G11*(E74+E75+C76)/(E74+E75) -> 41.86663586 | D80: =SpecSheet!H11*(D74+D75+D76)/(D74+D75) -> 43.09227984 | E80: =SpecSheet!I11*(C74+C75+E76)/(C74+C75) -> 44.35037769 | F80: V
B81: OV Falling | C81: =(SpecSheet!G13-SpecSheet!I14)*(E74+C75+C76)/E74 -> 67.8859404 | D81: =(SpecSheet!H13-SpecSheet!H14)*(D74+D75+D76)/D74 -> 70.66166 | E81: =(SpecSheet!I13-SpecSheet!G14)*(C74+E75+E76)/C74 -> 73.52124545 | F81: V
B82: OV Rising | C82: =SpecSheet!G13*(E74+C75+C76)/E74 -> 69.79115881 | D82: =SpecSheet!H13*(D74+D75+D76)/D74 -> 71.88878 | E82: =SpecSheet!I13*(C74+E75+E76)/C74 -> 74.04267273 | F82: V
A86: 3 | B86: DRNS RTNS Resistive Divider
B87: DRNS and RTNS are the inputs to a differential amplifier that measures the attenuated load voltage for dv/dt contorl at start up. In the event of an output overload or short circuit, the current limit foldback profile in normal operation depends upon the differential input between RTNS and DRNS that represents the output voltage across the load. The current limit starts to foldback when RTNS-DRNS drops below 0.9V and reached the minimum when RTNS-DRNS drops to zero.
B89: Suggested Divider Ratio | C89: =ABS(C8)/1.8 -> 38.88888889
B90: Divider Ratio | C90: 40
B91: ADC Measurement Full Scale | C91: =C90*2.048 -> 81.92 | D91: V
B92: =IF(C91>E82,"","ADC Measurement Full Scale should be higher than maximum valid voltage. Chose a higher divider ratio") -> 
B93: Resistor Tolerance | C93: E96 (1%)
B94: Resistor Tolerance Selected | C94: =Q96 -> 1 | D94: %
K95: E96 (1%) | L95: 96 | M95: 1 | N95: =IF($C$93=K95,1,0) -> 1 | P95: Active E | Q95: active %
B96: Suggested RRT | C96: 200 | D96: kΩ | K96: E192 (0.5%) | L96: 192 | M96: 0.5 | N96: =IF($C$93=K96,1,0) -> 0 | P96: =IF(N95=1,96,192) -> 96 | Q96: =IF(N95=1,M95,IF(N96=1,M96,IF(N97=1,M97,IF(N98=1,M98,1)))) -> 1
B97: Installed RRT | C97: 200 | D97: kΩ | K97: E192 (0.25%) | L97: 192 | M97: 0.25 | N97: =IF($C$93=K97,1,0) -> 0
B98: Calculated RRB | C98: =C97/$C$90 -> 5 | D98: kΩ | K98: E192 (0.1%) | L98: 192 | M98: 0.1 | N98: =IF($C$93=K98,1,0) -> 0
B99: Suggested RRB Standard Value | C99: =ROUND(10^(ROUND((LOG10(C98)-INT(LOG10(C98)))*$P$96,0)/$P$96),2)*10^(INT(LOG10(C98))) -> 4.99 | D99: kΩ
B100: Selected RRB Value | C100: 4.99 | D100: kΩ
B101: =IF(INT(C97/C100)=INT(C90),"","RRB should be selected so that ratio of RRT and RRB is equal to or close to Divider Ratio") -> 
B102: RDT | C102: =C96 -> 200 | D102: kΩ
B103: RDB | C103: =C100 -> 4.99 | D103: kΩ
B105: =IF(C97/C100=C102/C103,"","RRT vs. RRB ratio should be same as RDT vs. RDB ratio") -> 
C106: Min | D106: Typ | E106: Max
B107: Actual Divider Ratio | C107: =(C102-(Q96/100*C102))/(C103+(Q96*C103/100)) -> 39.28649378 | D107: =C102/C103 -> 40.08016032 | E107: =(C102+(Q96/100*C102))/(C103-(Q96*C103/100)) -> 40.88986053
B108: Setting VOUTTH Threshold Voltage
B109: Desired Power Good Signal Reset Voltage/ Current Foldback will engage below this voltage | C109: 38 | D109: V
B110: VOUTTH Resistor divider is connected to | C110: Vref
B112: RVOUTTH_TOP and RVOUTTH_BOT resistors installed between Vref or INTVCC and Vee set a voltage at VOUTTH pin. When RTNS-DRNS voltage goes below this VOUTTH voltage, VOUT Low Staus Bit is set which implies that power at the output is not good anymore. For better accuracy, connect VOUTTH Resistor divider to Vref pin.
C113: Min | D113: Typ | E113: Max
B114: VOUT Threshold | C114: =$C$109/E107 -> 0.9293257426 | D114: =$C$109/D107 -> 0.9481 | E114: =$C$109/C107 -> 0.9672535354 | F114: V
B115: =IF(C110="Vref","Vref","INTVcc") -> Vref | C115: =IF(C110="Vref",SpecSheet!G15,SpecSheet!G27) -> 1.01 | D115: =IF(C110="Vref",SpecSheet!H15,SpecSheet!H27) -> 1.024 | E115: =IF(C110="Vref",SpecSheet!I15,SpecSheet!I27) -> 1.038 | F115: V
B117: Suggested RVOUTTH_BOT | C117: 20 | D117: kΩ
B118: Installed RVOUTTH_BOT | C118: 20 | D118: kΩ
B119: Calculated RVOUTTH_TOP | C119: =((D115/D114)-1)*C118 -> 1.601096931 | D119: kΩ
B120: Suggested RVOUTTH_TOP Standard Value | C120: =ROUND(10^(ROUND((LOG10(C119)-INT(LOG10(C119)))*$P$96,0)/$P$96),2)*10^(INT(LOG10(C119))) -> 1.62 | D120: kΩ
B121: Installed RVOUTTH_TOP | C121: 1.62 | D121: kΩ
C123: Min | D123: Typ | E123: Max
B124: Actual VOUT Threshold | C124: =(((C118-(C118*Q96/100))/((C121+(C121*Q96/100))+((C118-(C118*Q96/100))))))*C115 -> 0.9329078848 | D124: =(C118/(C121+C118))*D115 -> 0.9472710453 | E124: =(((C118+(C118*Q96/100))/(((C121-(C121*Q96/100))+((C118+(C118*Q96/100)))))))*E115 -> 0.9616488869 | F124: V
B125: Actual Power Good Signal Reset Voltage / Current Limit will engage below this voltage | C125: =C124*C107 -> 36.65067981 | D125: =D124*D107 -> 37.96677536 | E125: =E124*E107 -> 39.32168886 | F125: V
B126: Attenuation Ratio | C126: =((C102-(C102*Q96/100))+(C103+(C103*Q96/100)))/(C103+(C103*Q96/100)) -> 40.28649378 | D126: =(C102+C103)/C103 -> 41.08016032 | E126: =((C102+(C102*Q96/100))+(C103-(C103*Q96/100)))/(C103-(C103*Q96/100)) -> 41.88986053
B127: =IF(E125<C79,"","Current foldback should engage at a voltage below valid operating range (Min UV). Either increase the UV falling min voltage or lower the max of current foldback engagement voltage") -> Current foldback should engage at a voltage below valid operating range (Min UV). Either increase the UV falling min voltage or lower the max of current foldback engagement voltage
B128: =IF(D125<D79,"","Current foldback should engage at a voltage below valid operating range. Either increase the UV falling min voltage or lower the max of current foldback engagement voltage") -> 
B131: =_xlfn.CONCAT("Go to ",C14," tab to design the channel") -> Go to LTC4284 Low Stress Staged Start Topology tab to design the channel
B140: Bill Of Meterials
B141: Component | C141: Value | D141: Units | E141: Quantity | F141: Other Specs
B142: R1 | C142: =C65 -> 10 | D142: =D65 -> kΩ | E142: 1 | F142: =_xlfn.CONCAT(C69,D69,", ",C70,D70) -> 1%, 0.125W
B143: R2 | C143: =C66 -> 14.3 | D143: kΩ | E143: 1 | F143: =_xlfn.CONCAT(C69,D69,", ",C70,D70) -> 1%, 0.125W
B144: R3 | C144: =C67 -> 487 | D144: kΩ | E144: 1 | F144: =_xlfn.CONCAT(C69,D69,", ",C70,D70) -> 1%, 0.125W
B145: Rin | C145: =C30 -> 1 | D145: =D30 -> kΩ | E145: =C36 -> 4 | F145: =_xlfn.CONCAT(C33,D33,", ",C31,D31) -> 1%, 0.5W
B146: RRT | C146: =C97 -> 200 | D146: =D97 -> kΩ | E146: 1 | F146: =_xlfn.CONCAT($C$94:$D$94,", ","0.25W") -> 1%, 0.25W
B147: RRB | C147: =C100 -> 4.99 | D147: =D100 -> kΩ | E147: 1 | F147: 1%, 0.25W
B148: RDB | C148: =C103 -> 4.99 | D148: =D103 -> kΩ | E148: 1 | F148: 1%, 0.25W
B149: RDT | C149: =C102 -> 200 | D149: =D102 -> kΩ | E149: 1 | F149: 1%, 0.25W
B150: RVOUTTH_TOP | C150: =C118 -> 20 | D150: =D118 -> kΩ | E150: 1 | F150: 1%, 0.25W
B151: RVOUTH_BOT | C151: =C121 -> 1.62 | D151: =D121 -> kΩ | E151: 1 | F151: 1%, 0.25W
B152: RD | C152: 100 | D152: kΩ | E152: 1 | F152: 1%, 0.25W
B153: CVCC | C153: 1 | D153: uF | E153: 1 | F153: 10% 50V
B154: CIN | C154: 0.1 | D154: uF | E154: 1 | F154: 10% 50V
B155: CL | C155: =C18 -> 1900 | D155: =D18 -> uF | F155: =_xlfn.CONCAT(C19:D19,", ","100V") -> 5%, 100V

Sheet LTC4283
B1: LTC4283 Topology
B2: =General!B1 -> Please enter the data in white cells
B3: =General!B2 -> LTC4284 Design Tool
B5: =General!B4 -> System Specifications
B6: =General!B5 -> Power Requirement (W) | C6: =General!C5 -> 1900 | D6: =General!D5 -> W
B7: =General!B6 -> Line Step | C7: =General!C6 -> No
B8: =General!B7 -> Voltage Supply Min (V) | C8: =General!E7 -> 40 | D8: =General!D7 -> V
B9: =General!B8 -> Voltage Supply Max (V) | C9: =General!E8 -> 70 | D9: =General!D8 -> V
B10: =General!B9 -> Nominal Voltage | C10: =General!E9 -> 48 | D10: =General!D9 -> V
B11: =General!B18 -> Selected Output Capacitor Value | C11: =General!C18 -> 1900 | D11: =General!D18 -> uF
B12: =General!B10 -> Step Voltage | C12: =General!C10 -> 30 | D12: =General!D10 -> V
K13: Resistor Power Rating
B14: Sense Resistor Selection | K14: 0.05
B15: Maximum Load Current | C15: =C6/ABS(C8) -> 47.5 | D15: A | K15: 0.062
B16: Current Limit | C16: 40 | D16: A | K16: 0.1
B17: =IF(C16>=C15,"","Current limit should be set above the maximum load current") -> Current limit should be set above the maximum load current | K17: 0.125
B18: Maximum Current | C18: =C16 -> 40 | D18: A | K18: 0.25
B19: Current Sense Voltage Threshold | C19: 0.015 | D19: V | K19: 0.5
K20: 1
B21: Maximum Power Dissipation in Sense Resistor | C21: =C19*C18 -> 0.6 | D21: W
B22: Power Rating of the Sense Resistor | C22: 0.25 | D22: W
B23: Suggested Allowed Power Dissipation in Sense Resistor | C23: =C22/2 -> 0.125 | D23: W
B24: Allowed Power Dissipation in Sense Resistor | C24: 0.125 | D24: W
B25: Effective Rsense required | C25: =C19/C18*1000 -> 0.375 | D25: mΩ
B26: Suggested resistor value of Rsense | C26: =C25*C30 -> 1.875 | D26: mΩ
B27: Installed resistor value for Rsense | C27: 2 | D27: mΩ
B29: Rsense Tolerance | C29: E96 (1%)
B30: Number of Sense Resistors Required to achieve Rsense Power requirement | C30: =IF((C21/C24)>INT(C21/C24),INT(C21/C24)+1,INT(C21/C24)) -> 5
B31: Number of Rsense Required in Parallel to achieve Rsense resistance requirement | C31: =IF((C27/C25)>INT(C27/C25),INT(C27/C25)+1,INT(C27/C25)) -> 6 | K31: E96 (1%) | L31: 96 | M31: 1 | N31: =IF($C$29=K31,1,0) -> 1 | P31: Active E | Q31: active %
B32: Number of Sense Resistors Populated | C32: 6 | K32: E192 (0.5%) | L32: 192 | M32: 0.5 | N32: =IF($C$29=K32,1,0) -> 0 | P32: =IF(N31=1,96,192) -> 96 | Q32: =IF(N31=1,M31,IF(N32=1,M32,IF(N33=1,M33,IF(N34=1,M34,1)))) -> 1
B33: =IF((C32)>=(C30),"","Need to add more sense resistors in order to achieve required safe power dissipation number") ->  | K33: E192 (0.25%) | L33: 192 | M33: 0.25 | N33: 0
B34: =IF(INT(C32)>=INT(C31),"","Need to add more sense resistors in order to achieve required effective Rsense Value") ->  | K34: E192 (0.1%) | L34: 192 | M34: 0.1 | N34: =IF($C$29=K34,1,0) -> 0
C35: Min | D35: Typ | E35: Max
B36: Actual Effective Rsense | C36: =(C27-(C27*Q32/100))/C32 -> 0.33 | D36: =C27/C32 -> 0.3333333333 | E36: =(C27+(C27*Q32/100))/C32 -> 0.3366666667 | F36: mΩ
B38: Actual Current Sense Voltage Threshold | C38: =0.98*D38 -> 0.0147 | D38: 0.015 | E38: =1.02*D38 -> 0.0153 | F38: V
B39: User might need to chose a differnet Current Sense Threshold Voltage based upon Actual Effective Rsense
B40: =_xlfn.CONCAT("Current Sense Voltage Threshold [0x0D][7:4] should be programmed to value ") -> Current Sense Voltage Threshold [0x0D][7:4] should be programmed to value | C40: =(IF(D38='Register Map'!E36,'Register Map'!D36,(IF(D38='Register Map'!E37,'Register Map'!D37,(IF(D38='Register Map'!E38,'Register Map'!D38,(IF(D38='Register Map'!E39,'Register Map'!D39,(IF(D38='Register Map'!E40,'Register Map'!D40,(IF(D38='Register Map'!E41,'Register Map'!D41,(IF(D38='Register Map'!E42,'Register Map'!D42,(IF(D38='Register Map'!E43,'Register Map'!D43,(IF(D38='Register Map'!E44,'Register Map'!D44,(IF(D38='Register Map'!E45,'Register Map'!D45,(IF(D38='Register Map'!E46,'Register Map'!D46,(IF(D38='Register Map'!E47,'Register Map'!D47,(IF(D38='Register Map'!E48,'Register Map'!D48,(IF(D38='Register Map'!E49,'Register Map'!D49,(IF(D38='Register Map'!E50,'Register Map'!D50,(IF(D38='Register Map'!E51,'Register Map'!D51,0)))))))))))))))))))))))))))))))) -> 0000
B43: Actual Maximum Current | C43: =$C$38/E36*1000 -> 43.66336634 | D43: =$D$38/D36*1000 -> 45 | E43: =$E$38/C36*1000 -> 46.36363636 | F43: A
B44: Actual Power Dissipation per Sense Resistor | C44: =$C$38*C43/INT($C$31) -> 0.1069752475 | D44: =$D$38*D43/INT($C$31) -> 0.1125 | E44: =$E$38*E43/INT($C$31) -> 0.1182272727 | F44: W
B45: Actual Current Limit for the System | C45: =C43 -> 43.66336634 | D45: =D43 -> 45 | E45: =E43 -> 46.36363636 | F45: A
B46: =IF(E44>C24,"Max Power dissipation per sense resistor is more than the allowed power dissipation. ","") -> 
B47: =IF(E44>C24,"Typ Power dissipation per sense resistor is more than the allowed power dissipation. Either increse the number of the sense resistors or power rating of the sense resistors","") -> 
B48: =IF(C45<C18,"Min current limit is lower than desired current limit","") -> 
B49: =IF(D45<C18,"Typ current limit is lower than desired current limit. Either increase the current limit threshold or lower the effective sense resistance value","") -> 
B50: MOSFET Selection
B51: MOSFET Part Number | C51: PSMN4R8-100BSE
C52: Min | D52: Typ | E52: Max
B53: MOSFET Rdson | C53: 3.7 | D53: 4.1 | E53: 4.8 | F53: mΩ
B54: Desired power Dissipation per MOSFET | C54: 1 | D54: W
B55: Number of MOSFETs required | C55: =(E43*SQRT(E53*10^-3/C54)) -> 3.212166952
B56: Number of MOSFETs populated | C56: 3
B57: Power Dissipation Per MOSFET | C57: =C43*C43*C53/(1000*INT(C56)*INT(C56)) -> 0.7837790413 | D57: =D43*D43*D53/(1000*INT(C56)*INT(C56)) -> 0.9225 | E57: =E43*E43*E53/(1000*INT(C56)*INT(C56)) -> 1.146446281 | F57: W
B58: Voltage Drop Across MOSFETs during current limit | C58: =C43*C53/(1000*INT(C56)) -> 0.05385148515 | D58: =D43*D53/(1000*INT(C56)) -> 0.0615 | E58: =E43*E53/(1000*INT(C56)) -> 0.07418181818 | F58: V
B59: =IF(D57>C54,"Too much power disssipation in the MOSFET. Either increase the number of MOSFETs or use a lower Rdson MOSFET","") -> 
B60: =IF(E57>C54,"Max power disssipation in the MOSFET in higher than the Typical Desired Power dissipation per MOSFET. Either increase the number of MOSFETs or use a lower Rdson MOSFET","") -> Max power disssipation in the MOSFET in higher than the Typical Desired Power dissipation per MOSFET. Either increase the number of MOSFETs or use a lower Rdson MOSFET
B61: =_xlfn.CONCAT("FET BAD THRESHOLD must be set higher than ",ROUND(E58,3), "V. This Threshold can be programmed using register CONFIG_2 [0x0E]") -> FET BAD THRESHOLD must be set higher than 0.074V. This Threshold can be programmed using register CONFIG_2 [0x0E]
B62: FET BAD THRESHOLD | C62: 0.143 | D62: V
B63: FET BAD THRESHOLD [0x0E][7:6] should be programmed to value | C63: =IF(C62='Register Map'!E64,'Register Map'!D64,(IF(C62='Register Map'!E65,'Register Map'!D65,(IF(C62='Register Map'!E66,'Register Map'!D66,(IF(C62='Register Map'!E67,'Register Map'!D67,0))))))) -> 10
B64: =IF(ABS(C62)>ABS(D58),"","FET BAD THRESHOLD must be selected higher that the Maximum Voltage Drop Across MOSFETs during DC Operation") -> 
B66: FET BAD TIMER DELAY: If voltage across the MOSFET is greater than the FET BAD THRESHOLD voltage, for time euqal to or greater than FET BAD TIMER DELAY, the MOSFET is flagged as BAD MOSFET. It is important that FET BAD TIMER Delay should be set higher than time for all the valid secnarios such as charging the output cap during startup or input step where MOSFET operates in linear region.
B68: FET BAD TIMER Delay | C68: 0.256 | D68: sec
B69: FET BAD TIMER Delay [0X0E][5:4] should be programmed to value | C69: =IF(C68='Register Map'!E69,'Register Map'!D69,(IF(C68='Register Map'!E70,'Register Map'!D70,(IF(C68='Register Map'!E71,'Register Map'!D71,(IF(C68='Register Map'!E72,'Register Map'!D72,0))))))) -> 00
B72: Timer Cap Calculation
B74: Start up Mode : Please select if system should start up using dv/dt mode (using RAMP cap) or Current Limit Mode | C74: dv/dt Mode
B75: =IF(C74="dv/dt Mode","Go to Row#110","Go to Row#72") -> Go to Row#110
B77: Start up Mode : Start up Current is Controlled by Start up Foldback in Current Limit Mode | D77: dv/dt Control is disabled
B78: CONTROL_1 [0x0A][6] should be programmed to 0
B79: Foldback Ratio | C79: 10 | G79: Use 10% whenever possible
B80: CONFIG_1 [0x0D][3:2] should be programmed to value | C80: =IF(C79='Register Map'!$E$54,'Register Map'!$D$54,(IF(C79='Register Map'!$E$57,'Register Map'!$D$57,(IF(C79='Register Map'!$E$55,'Register Map'!$D$55,(IF(C79='Register Map'!$E$56,'Register Map'!$D$56,0))))))) -> 11
C81: Min | D81: Typ | E81: Max
B82: Total Inrush Current | C82: =C79*C45/100 -> 4.366336634 | D82: =C79*D45/100 -> 4.5 | E82: =C79*E45/100 -> 4.636363636 | F82: A
B83: Inrush Current per Channel | C83: =C82/2 -> 2.183168317 | D83: =D82/2 -> 2.25 | E83: =E82/2 -> 2.318181818 | F83: A
B84: Inrush Current per FET | C84: =C83/C56 -> 0.7277227723 | D84: =D83/C56 -> 0.75 | E84: =E83/C56 -> 0.7727272727 | F84: A
B85: Maximum time to charge the Load Capacitor | C85: =General!C21*ABS(C9)/E82/1000 -> 27.25196078 | D85: =General!D21*ABS(C9)/D82/1000 -> 29.55555556 | E85: =General!E21*ABS(C9)/C82/1000 -> 31.98333333 | F85: ms
B86: =IF((E85/1000)>C68,"FET BAD Timer Delay is set to a smaller value than the time it takes to charge the output cap to max valid input voltage. Please select a higher value for FET BAD TIMER Delay.","") -> 
B87: TMR Current (when DRNS = 0) | C87: =IF($C$80="00",ABS(SpecSheet!G19),(IF($C$80="01",ABS(SpecSheet!G20),(IF($C$80="10",ABS(SpecSheet!G21),(IF($C$80="11",ABS(SpecSheet!G22),0))))))) -> 20 | D87: =IF($C$80="00",ABS(SpecSheet!H19),(IF($C$80="01",ABS(SpecSheet!H20),(IF($C$80="10",ABS(SpecSheet!H21),(IF($C$80="11",ABS(SpecSheet!H22),0))))))) -> 22 | E87: =IF($C$80="00",ABS(SpecSheet!I19),(IF($C$80="01",ABS(SpecSheet!I20),(IF($C$80="10",ABS(SpecSheet!I21),(IF($C$80="11",ABS(SpecSheet!I22),0))))))) -> 24 | F87: uA
B88: TMR Current average | C88: =(C87+2)/2 -> 11 | D88: =(D87+2)/2 -> 12 | E88: =(E87+2)/2 -> 13 | F88: uA | G88: TMR current is not constant, but proportional to VDS. See datasheet, page 26
B89: TMR Fault Threshold | C89: =SpecSheet!G25 -> 2.028 | D89: =SpecSheet!H25 -> 2.048 | E89: =SpecSheet!I25 -> 2.068 | F89: V
B90: TMR Cap should be greater than | D90: =(E88*E85/C89)+(E88*E85/C89)*D92/100 -> 215.2724359 | F90: nF
B91: TMR Cap Populated | D91: 196 | F91: nF
B92: Timer Cap Tolerance | D92: 5 | F92: %
B93: Actual Timer Cap Value | C93: =(1-(D92/100))*D91 -> 186.2 | D93: =D91 -> 196 | E93: =(1+(D92/100))*D91 -> 205.8 | F93: nF
B94: During startup, Timer will trip after | C94: =C93*C89/E88 -> 29.0472 | D94: =D93*D89/D88 -> 33.45066667 | E94: =E93*E89/C88 -> 38.6904 | F94: ms
B95: =IF(C94>E85,"","TMR cap should only trip after the load cap has been fully charged. Please select a higher TMR cap value") -> TMR cap should only trip after the load cap has been fully charged. Please select a higher TMR cap value
B96: During Input Step: | C96: Min | D96: Typ | E96: Max
B97: Current Limit | C97: =C45 -> 43.66336634 | D97: =D45 -> 45 | E97: =E45 -> 46.36363636 | F97: A
B98: Load Current (for constant power load average load current) | D98: =((C6/C8)+(C6/C9))/2 -> 37.32142857 | F98: A | G98: For constant power load, this current is not constant (use average current as approximation)
B99: Current available to charge the output cap | C99: =C97-D98 -> 6.341937765 | D99: =D97-D98 -> 7.678571429 | E99: =E97-D98 -> 9.042207792 | F99: A
B100: Maximum time to charge the Load Capacitor | C100: =General!C21*C12/E99/1000 -> 5.988581688 | D100: =General!D21*C12/D99/1000 -> 7.423255814 | E100: =General!E21*C12/C99/1000 -> 9.437178701 | F100: ms
B101: TMR Current | C101: =ABS(SpecSheet!G24) -> 192 | D101: =ABS(SpecSheet!H24) -> 202 | E101: =ABS(SpecSheet!I24) -> 212 | F101: uA
B102: TMR Fault Threshold | C102: =SpecSheet!G25 -> 2.028 | D102: =SpecSheet!H25 -> 2.048 | E102: =SpecSheet!I25 -> 2.068 | F102: V
B103: TMR Cap should be greater than | D103: =(E101*E100/C102)+((E101*E100/C102)*D92/100) -> 1035.856005 | F103: nF
B104: During input step, Timer will trip after | C104: =C93*C102/E101 -> 1.781196226 | D104: =D93*D102/D101 -> 1.987168317 | E104: =E93*E102/C101 -> 2.2166375 | F104: ms
B105: =IF(E100>C104,"TMR cap should only trip after the load cap has been fully charged. Please select a higher TMR cap value","") -> TMR cap should only trip after the load cap has been fully charged. Please select a higher TMR cap value
B106: During Output Short: Short into 0 ohm resistor | C106: Min | D106: Typ | E106: Max
B107: Current Limit During Output Short | C107: =$C$79/100*C45 -> 4.366336634 | D107: =$C$79/100*D45 -> 4.5 | E107: =$C$79/100*E45 -> 4.636363636 | F107: A
B108: TMR Current | C108: =ABS(SpecSheet!G24) -> 192 | D108: =ABS(SpecSheet!H24) -> 202 | E108: =ABS(SpecSheet!I24) -> 212 | F108: =(SpecSheet!J24) -> uA
B109: TMR Fault Threshold | C109: =SpecSheet!G25 -> 2.028 | D109: =SpecSheet!H25 -> 2.048 | E109: =SpecSheet!I25 -> 2.068 | F109: =SpecSheet!J25 -> V
B110: Timer will trip after | C110: =E93*C109/E108 -> 1.968690566 | D110: =D91*D109/D108 -> 1.987168317 | E110: =E93*E109/C108 -> 2.2166375 | F110: ms
B112: =_xlfn.CONCAT("DURING STARTUP: Please check the SOA of the MOSFET to check if selected MOSFET can handle ",ABS(C9),"V and ",D84,"A for ",INT(D85),"ms. Otherwise, try to change the current limit and/or foldback ratio or the MOSFET.") -> DURING STARTUP: Please check the SOA of the MOSFET to check if selected MOSFET can handle 70V and 0.75A for 29ms. Otherwise, try to change the current limit and/or foldback ratio or the MOSFET.
B113: =_xlfn.CONCAT("DURING INPUT STEP: Please check the SOA of the MOSFET to check if selected MOSFET can handle ",ABS(C12),"V and ",D97,"A for ",INT(D100),"ms. Otherwise, try to change the current limit and/or foldback ratio or the MOSFET.") -> DURING INPUT STEP: Please check the SOA of the MOSFET to check if selected MOSFET can handle 30V and 45A for 7ms. Otherwise, try to change the current limit and/or foldback ratio or the MOSFET.
B114: =_xlfn.CONCAT("DURING OUTPUT SHORT: Please check the SOA of the MOSFET to check if selected MOSFET can handle ",ABS(C9),"V and ",ROUND(E107,3),"A for ",INT(E110),"ms. Otherwise, try to change the current limit and/or foldback ratio or the MOSFET.") -> DURING OUTPUT SHORT: Please check the SOA of the MOSFET to check if selected MOSFET can handle 70V and 4.636A for 2ms. Otherwise, try to change the current limit and/or foldback ratio or the MOSFET.
B116: Start up Mode: dV/dt Control is Enabled
B117: CONTROL_1 [0x0A][6] should be programmed to 1
C118: Min | D118: Typ | E118: Max
B119: Desired Inrush Current | D119: 4 | F119: A | G119: Make this equal to or smaller than half of the startup current limit
B120: Calculated Ramp Cap Value | D120: =(ABS(SpecSheet!H26)*General!D126*General!D21/D119/1000)+((ABS(SpecSheet!H26)*General!D126*General!D21/D119/1000)*D122/100) -> 51.2218249 | F120: nF
B121: RAMP Cap Value Installed | D121: 32 | F121: nF
B122: Ramp Cap Tolerance | D122: 5 | F122: %
B123: Actual Ramp Cap Value | C123: =(1-(D122/100))*D121 -> 30.4 | D123: =D121 -> 32 | E123: =(1+(D122/100))*D121 -> 33.6 | F123: nF
B124: Actual Inrush Current | C124: =ABS(SpecSheet!G26)*General!C126*General!C21/C123/1000 -> 5.382023778 | D124: =ABS(SpecSheet!H26)*General!D126*General!D21/D123/1000 -> 6.097836298 | E124: =ABS(SpecSheet!I26)*General!E126*General!E21/E123/1000 -> 6.83982879 | F124: A
B125: Foldback Ratio | D125: 10 | G125: Use 10% foldback to speed up timeout upon starting into resistive short
B126: CONFIG_1 [0x0D][3:2] should be programmed to value | D126: =IF(D125='Register Map'!$E$54,'Register Map'!$D$54,(IF(D125='Register Map'!$E$57,'Register Map'!$D$57,(IF(D125='Register Map'!$E$55,'Register Map'!$D$55,(IF(D125='Register Map'!$E$56,'Register Map'!$D$56,0))))))) -> 11
B127: Current Limit during Startup | C127: =C45*$D$125/100 -> 4.366336634 | D127: =D45*$D$125/100 -> 4.5 | E127: =E45*$D$125/100 -> 4.636363636 | F127: A
B128: =IF(E124>C127,"Inrush current will hit the current limit during start up and make the timer run. If you do not want to hit the current limit during start up, either increase the foldaback ratio or reduce the inrush current by increasing the Ramp cap","") -> Inrush current will hit the current limit during start up and make the timer run. If you do not want to hit the current limit during start up, either increase the foldaback ratio or reduce the inrush current by increasing the Ramp cap
B129: Time to Charge the Load Capacitor | C129: =General!C21*ABS(C9)/E124/1000 -> 18.47268461 | D129: =General!D21*ABS(C9)/D124/1000 -> 21.81101517 | E129: =General!E21*ABS(C9)/C124/1000 -> 25.94748848 | F129: ms
B131: During Input Step: | C131: Min | D131: Typ | E131: Max
B132: Current Limit | C132: =C45 -> 43.66336634 | D132: =D45 -> 45 | E132: =E45 -> 46.36363636 | F132: A
B133: Load Current | D133: =((C6/C8)+(C6/C9))/2 -> 37.32142857 | F133: A | G133: For constant power load, this is not a constant (use average current as approximation)
B134: Current available to charge the output cap | C134: =-(D133-E132) -> 9.042207792 | D134: =D132-D133 -> 7.678571429 | E134: =-(D133-C132) -> 6.341937765 | F134: A
B135: Maximum time to charge the Load Capacitor | C135: =General!C21*$C$12/E134/1000 -> 8.538399777 | D135: =General!D21*$C$12/D134/1000 -> 7.423255814 | E135: =General!E21*$C$12/C134/1000 -> 6.618958707 | F135: ms
B136: TMR Current | C136: =ABS(SpecSheet!G23) -> 192 | D136: =ABS(SpecSheet!H23) -> 202 | E136: =ABS(SpecSheet!I23) -> 212 | F136: uA
B137: TMR Fault Threshold | C137: =SpecSheet!G25 -> 2.028 | D137: =SpecSheet!H25 -> 2.048 | E137: =SpecSheet!I25 -> 2.068 | F137: V
B138: TMR Cap should be greater than | D138: =(E136*E135/C137)+((E136*E135/C137)*D140/100) -> 726.5188404 | F138: nF
B139: TMR Cap populated | D139: 170 | F139: nF
B140: Timer Cap Tolerance | D140: 5 | F140: %
B141: Actual Timer Cap Value | C141: =(1-(D140/100))*D139 -> 161.5 | D141: =D139 -> 170 | E141: =(1+(D140/100))*D139 -> 178.5 | F141: nF
B142: During input step, Timer will trip after | C142: =C141*C137/E136 -> 1.544915094 | D142: =D141*D137/D136 -> 1.723564356 | E142: =E141*E137/C136 -> 1.92259375 | F142: ms
B143: =IF(C142>E135,"","TMR cap may trip before the system is able to ride through input step. This may shut down the system. Please select a higher TMR cap value") -> TMR cap may trip before the system is able to ride through input step. This may shut down the system. Please select a higher TMR cap value
B144: =IF(AND((D124>D127),(D129>D142)),"Device is starting up in Current Limit and Timer is going to expire before output cap is charged up which will not turn on the circuit properly. ","") -> Device is starting up in Current Limit and Timer is going to expire before output cap is charged up which will not turn on the circuit properly.
B145: During Output Short: Short into 0 ohm resistor | C145: Min | D145: Typ | E145: Max
B146: Current Limit During Output Short | C146: =$C$79/100*C45 -> 4.366336634 | D146: =$C$79/100*D45 -> 4.5 | E146: =$C$79/100*E45 -> 4.636363636 | F146: A
B147: TMR Current | C147: =ABS(SpecSheet!G24) -> 192 | D147: =ABS(SpecSheet!H24) -> 202 | E147: =ABS(SpecSheet!I24) -> 212 | F147: =(SpecSheet!J24) -> uA
B148: TMR Fault Threshold | C148: =SpecSheet!G25 -> 2.028 | D148: =SpecSheet!H25 -> 2.048 | E148: =SpecSheet!I25 -> 2.068 | F148: =SpecSheet!J25 -> V
B149: Timer will trip after | C149: =D139*C148/E147 -> 1.626226415 | D149: =D139*D148/D147 -> 1.723564356 | E149: =D139*E148/C147 -> 1.831041667 | F149: ms
B151: =_xlfn.CONCAT("DURING STARTUP:Please check the SOA of the MOSFET to check if selected MOSFET can handle ",ABS(C9),"V and ",ROUND(D124,3),"A for ",INT(D129),"ms. Otherwise, try to change the current limit and/or foldback ratio or the MOSFET.") -> DURING STARTUP:Please check the SOA of the MOSFET to check if selected MOSFET can handle 70V and 6.098A for 21ms. Otherwise, try to change the current limit and/or foldback ratio or the MOSFET.
B152: =_xlfn.CONCAT("DURING INPUT STEP: Please check the SOA of the MOSFET to check if selected MOSFET can handle ",ABS(C12),"V and ",D132,"A for ",INT(D135),"ms. Otherwise, try to change the current limit and/or foldback ratio or the MOSFET.") -> DURING INPUT STEP: Please check the SOA of the MOSFET to check if selected MOSFET can handle 30V and 45A for 7ms. Otherwise, try to change the current limit and/or foldback ratio or the MOSFET.
B153: =_xlfn.CONCAT("DURING OUTPUT SHORT: Please check the SOA of the MOSFET to check if selected MOSFET can handle ",ABS(C9),"V and ",ROUND(E146,3),"A for ",ROUND(E149,3),"ms. Otherwise, try to change the current limit and/or foldback ratio or the MOSFET.") -> DURING OUTPUT SHORT: Please check the SOA of the MOSFET to check if selected MOSFET can handle 70V and 4.636A for 1.831ms. Otherwise, try to change the current limit and/or foldback ratio or the MOSFET.
B154: Simulate the circuit in LTspice. Use SOAtherm simulation using LTspice to check SOA.
B159: Bill Of Meterials
B160: Component | C160: Value | D160: Units | E160: Quantity | F160: Other Specs
B161: Rs1 | C161: =C27 -> 2 | D161: =D27 -> mΩ | E161: =C32 -> 6 | F161: =_xlfn.CONCAT(Q32,"%",", ",C22,D22) -> 1%, 0.25W
B162: Rs2 | C162: =C27 -> 2 | D162: =D27 -> mΩ | E162: =C32 -> 6 | F162: =_xlfn.CONCAT(Q32,"%",", ",C22,D22) -> 1%, 0.25W
B163: CTMR | C163: =IF(C74="dv/dt Mode",D139,D91) -> 170 | D163: =IF(C74="dv/dt Mode",F139,F91) -> nF | E163: 1 | F163: =IF(C74="dv/dt Mode",_xlfn.CONCAT(D140,F140,", ","25V"),_xlfn.CONCAT(D92,F92,", ","25V")) -> 5%, 25V
B164: CRAMP | C164: =IF(C74="dv/dt Mode",D121,"Do not Install") -> 32 | D164: =IF(C74="dv/dt Mode",F121,"") -> nF | E164: =IF(C74="dv/dt Mode",1,"") -> 1 | F164: =IF(C74="dv/dt Mode",_xlfn.CONCAT(D122,F122,", ","25V"),"") -> 5%, 25V
B165: MOSFET (M1) | C165: =C51 -> PSMN4R8-100BSE | E165: =C56 -> 3
B166: MOSFET (M2) | C166: =C51 -> PSMN4R8-100BSE | E166: =C56 -> 3

Sheet LTC4284 Parallel
B1: Parallel Topology
B2: =General!B1 -> Please enter the data in white cells
B3: =General!B2 -> LTC4284 Design Tool
B5: =General!B4 -> System Specifications
B6: =General!B5 -> Power Requirement (W) | C6: =General!C5 -> 1900 | D6: =General!D5 -> W
B7: =General!B6 -> Line Step | C7: =General!C6 -> No
B8: =General!B7 -> Voltage Supply Min (V) | C8: =General!E7 -> 40 | D8: =General!D7 -> V
B9: =General!B8 -> Voltage Supply Max (V) | C9: =General!E8 -> 70 | D9: =General!D8 -> V
B10: =General!B9 -> Nominal Voltage | C10: =General!E9 -> 48 | D10: =General!D9 -> V
B11: =General!B18 -> Selected Output Capacitor Value | C11: =General!C18 -> 1900 | D11: =General!D18 -> uF
B12: =General!B10 -> Step Voltage | C12: =General!C10 -> 30 | D12: =General!D10 -> V
K13: Resistor Power Rating
B14: Sense Resistor Selection | K14: 0.05
B15: Maximum Load Current | C15: =C6/ABS(C8) -> 47.5 | D15: A | K15: 0.062
B16: Current Limit of the System | C16: 40 | D16: A | K16: 0.1
B17: =IF(C16>=C15,"","Current limit should be set above the maximum load current to accommodate the inrush current during load step") -> Current limit should be set above the maximum load current to accommodate the inrush current during load step | K17: 0.125
B18: Maximum Current per Channel | C18: =C16/2 -> 20 | D18: A | K18: 0.25
B19: Current Sense Voltage Threshold | C19: 0.015 | D19: V | K19: 0.5
B20: Always | K20: 1
B21: Maximum Power Dissipation in Sense Resistor Per Channel | C21: =C19*C18 -> 0.3 | D21: W
B22: Power Rating of the sense resistor | C22: 0.25 | D22: W
B23: Suggested Allowed Power Dissipation in Sense Resistor | C23: =C22/2 -> 0.125 | D23: W
B24: Allowed Power Dissipation in Sense Resistor | C24: 0.125 | D24: W
B25: Effective Rsense required per Channel | C25: =C19/C18*1000 -> 0.75 | D25: mΩ
B26: Suggested Rsense Value | C26: =C25*C29 -> 2.25 | D26: mΩ
B27: Installed resistor value for Rsense | C27: 3 | D27: mΩ
B28: Rsense Tolerance | C28: E96 (1%)
B29: Number of Sense Resistors Required to achieve Rsense Power requirement | C29: =IF((C21/C24)>INT(C21/C24),INT(C21/C24)+1,INT(C21/C24)) -> 3
B30: Number of Rsense Required in Parallel to achieve Rsense resistance requirement | C30: =IF((C27/C25)>INT(C27/C25),INT(C27/C25)+1,INT(C27/C25)) -> 4 | K30: E96 (1%) | L30: 96 | M30: 1 | N30: =IF($C$28=K30,1,0) -> 1 | P30: Active E | Q30: active %
B31: Number of Sense Resistors Populated per channel | C31: 6 | K31: E192 (0.5%) | L31: 192 | M31: 0.5 | N31: =IF($C$28=K31,1,0) -> 0 | P31: =IF(N30=1,96,192) -> 96 | Q31: =IF(N30=1,M30,IF(N31=1,M31,IF(N32=1,M32,IF(N33=1,M33,1)))) -> 1
B32: =IF(INT(C29)<=INT(C31),"","Need to add more sense resistors in order to achieve required safe power dissipation number") ->  | K32: E192 (0.25%) | L32: 192 | M32: 0.25 | N32: =IF($C$28=K32,1,0) -> 0
B33: =IF(INT(C30)>INT(C31),"Need to add more sense resistors in order to achieve required effective Rsense Value","") ->  | K33: E192 (0.1%) | L33: 192 | M33: 0.1 | N33: =IF($C$28=K33,1,0) -> 0
C36: Min | D36: Typ | E36: Max
B37: Actual Effective Rsense per Channel | C37: =(C27-(C27*Q31/100))/C31 -> 0.495 | D37: =C27/C31 -> 0.5 | E37: =(C27+(C27*Q31/100))/C31 -> 0.505 | F37: mΩ
B39: Actual Current Sense Voltage Threshold | C39: =0.98*D39 -> 0.01764 | D39: 0.018 | E39: =1.02*D39 -> 0.01836 | F39: V
B40: User might need to chose a different Current Sense Threshold Voltage based upon Actual Effective Rsense
B41: =_xlfn.CONCAT("Current Sense Voltage Threshold [0x0D][7:4] should be programmed to value ") -> Current Sense Voltage Threshold [0x0D][7:4] should be programmed to value | C41: =(IF(D39='Register Map'!E36,'Register Map'!D36,(IF(D39='Register Map'!E37,'Register Map'!D37,(IF(D39='Register Map'!E38,'Register Map'!D38,(IF(D39='Register Map'!E39,'Register Map'!D39,(IF(D39='Register Map'!E40,'Register Map'!D40,(IF(D39='Register Map'!E41,'Register Map'!D41,(IF(D39='Register Map'!E42,'Register Map'!D42,(IF(D39='Register Map'!E43,'Register Map'!D43,(IF(D39='Register Map'!E44,'Register Map'!D44,(IF(D39='Register Map'!E45,'Register Map'!D45,(IF(D39='Register Map'!E46,'Register Map'!D46,(IF(D39='Register Map'!E47,'Register Map'!D47,(IF(D39='Register Map'!E48,'Register Map'!D48,(IF(D39='Register Map'!E49,'Register Map'!D49,(IF(D39='Register Map'!E50,'Register Map'!D50,(IF(D39='Register Map'!E51,'Register Map'!D51,0)))))))))))))))))))))))))))))))) -> 0011
B44: Actual Maximum Current per Channel | C44: =$C$39/E37*1000 -> 34.93069307 | D44: =$D$39/D37*1000 -> 36 | E44: =$E$39/C37*1000 -> 37.09090909 | F44: A
B45: Actual Power Dissipation per Sense Resistor | C45: =$E$39*C44/INT($C$31) -> 0.1068879208 | D45: =$E$39*D44/INT($C$31) -> 0.11016 | E45: =$E$39*E44/INT($C$31) -> 0.1134981818 | F45: W
B46: Actual Current Limit for the System | C46: =C44*2 -> 69.86138614 | D46: =D44*2 -> 72 | E46: =E44*2 -> 74.18181818 | F46: A
B47: =IF('LTC4284 Parallel'!E45>('LTC4284 Parallel'!C24),"Max power dissipation in sense resistors is higher than the desired value.","") -> 
B48: =IF('LTC4284 Parallel'!D45>('LTC4284 Parallel'!C24),"Typ power dissipation in sense resistors is higher than the desired value. Either increase the number of sense resistors in the channel or decrease the actual current sense voltage threshold","") -> 
B49: =IF(C44<C18,"Min current limit per channel is lower than desired curretn per channel. Either increase the Current Sense Voltage Threshold or lower the Effective Rsense per channel","") -> 
B50: =IF(D44<C18,"Typ current limit per channel is lower than desired curretn per channel. Either increase the Current Sense Voltage Threshold or lower the Effective Rsense per channel","") -> 
B52: MOSFET Selection
B53: MOSFET Part Number | C53: PSMN4R8-100BSE
C54: Min | D54: Typ | E54: Max
B55: MOSFET Rdson | C55: 3.7 | D55: 4.1 | E55: 4.8 | F55: mΩ
B56: Desired power Dissipation per MOSFET | C56: 1 | D56: W
B57: Number of MOSFETs required per Channel | C57: =(E44*SQRT(E55*10^-3/C56)) -> 2.569733562
B58: Number of MOSFETs populated per Channel | C58: 2
B59: Power Dissipation Per MOSFET | C59: =C44*C44*C55/(1000*INT(C58)*INT(C58)) -> 1.128641819 | D59: =D44*D44*D55/(1000*INT(C58)*INT(C58)) -> 1.3284 | E59: =E44*E44*E55/(1000*INT(C58)*INT(C58)) -> 1.650882645 | F59: W
B60: Voltage Drop Across MOSFETs during current limit | C60: =C44*C55/(1000*INT(C58)) -> 0.06462178218 | D60: =D44*D55/(1000*INT(C58)) -> 0.0738 | E60: =E44*E55/(1000*INT(C58)) -> 0.08901818182 | F60: V
B61: =IF(D59>C56,"Too much power dissipation per MOSFET. Either increase the number of MOSFETs or use a MOSFET with lower Rdson","") -> Too much power dissipation per MOSFET. Either increase the number of MOSFETs or use a MOSFET with lower Rdson
B62: =IF(AND((E59>C56),(C56>D59)),"Typical power dissipation per MOSFET is lower than the desired power dissipation value but Max power dissipation per MOSFET can be higher than the desired value. User can increase the number of MOSFETs or use a MOSFET with lower Rdson","") -> 
B63: =_xlfn.CONCAT("FET BAD THRESHOLD must be set higher than ",ROUND(E60,3), "V. This Threshold can be programmed using register CONFIG_2 [0x0E]") -> FET BAD THRESHOLD must be set higher than 0.089V. This Threshold can be programmed using register CONFIG_2 [0x0E]
B64: FET BAD THRESHOLD | C64: 0.143 | D64: V
B65: FET BAD THRESHOLD [0x0E][7:6] should be programmed to value | C65: =IF(C64='Register Map'!E64,'Register Map'!D64,(IF(C64='Register Map'!E65,'Register Map'!D65,(IF(C64='Register Map'!E66,'Register Map'!D66,(IF(C64='Register Map'!E67,'Register Map'!D67,0))))))) -> 10
B66: =IF(ABS(C64)>ABS(D60),"","FET BAD THRESHOLD must be selected higher that the Maximum Voltage Drop Across MOSFETs during DC Operation") -> 
B68: FET BAD TIMER DELAY: If the voltage across the MOSFET is greater than FET BAD THRESHOLD voltage, for a time equal to FET BAD TIMER DELAY, the MOSFET is flagged as BAD MOSFET. It is important that FET BAD TIMER Delay should be set higher than the time required for all the valid secnario such as charging the output cap during startup or input step where MOSFET operates in linear region.
B70: FET BAD TIMER Delay | C70: 0.512 | D70: sec
B71: FET BAD TIMER Delay [0X0E][5:4] should be programmed to value | C71: =IF(C70='Register Map'!E69,'Register Map'!D69,(IF(C70='Register Map'!E70,'Register Map'!D70,(IF(C70='Register Map'!E71,'Register Map'!D71,(IF(C70='Register Map'!E72,'Register Map'!D72,0))))))) -> 01
B74: Timer Cap Calculation
B76: Start up Mode : Please select if system should start up using dv/dt mode (using RAMP cap) or Current Limit Mode | C76: Current Limit Mode
B77: =IF(C76="dv/dt Mode","Go to Row#110","Go to Row#72") -> Go to Row#72
B79: Start up Mode : Start up Current is Controlled by Start up Foldback in Current Limit Mode | D79: dv/dt Control is disabled
B80: CONTROL_1 [0x0A][6] should be programmed to 0
B81: Foldback Ratio | C81: 20 | G81: Use 10% whenever possible
B82: CONFIG_1 [0x0D][3:2] should be programmed to value | C82: =IF(C81='Register Map'!$E$54,'Register Map'!$D$54,(IF(C81='Register Map'!$E$57,'Register Map'!$D$57,(IF(C81='Register Map'!$E$55,'Register Map'!$D$55,(IF(C81='Register Map'!$E$56,'Register Map'!$D$56,0))))))) -> 10
C83: Min | D83: Typ | E83: Max
B84: Total Inrush Current | C84: =C81*C46/100 -> 13.97227723 | D84: =C81*D46/100 -> 14.4 | E84: =C81*E46/100 -> 14.83636364 | F84: A
B85: Inrush Current per Channel | C85: =C84/2 -> 6.986138614 | D85: =D84/2 -> 7.2 | E85: =E84/2 -> 7.418181818 | F85: A
B86: Inrush Current per FET | C86: =C85/C58 -> 3.493069307 | D86: =D85/C58 -> 3.6 | E86: =E85/C58 -> 3.709090909 | F86: A
B87: Maximum time to charge the Load Capacitor | C87: =General!C21*ABS(C9)/E84/1000 -> 8.516237745 | D87: =General!D21*ABS(C9)/D84/1000 -> 9.236111111 | E87: =ROUND(General!E21*ABS(C9)/C84/1000,2) -> 9.99 | F87: ms
B88: =IF((E87/1000)>C70,"FET BAD Timer Delay is set to a smaller value than the time it takes to charge the output cap to max valid input voltage. Please select a higher value for FET BAD TIMER Delay.","") -> 
B89: TMR Current (when DRNS = 0) | C89: =IF($C$82="00",ABS(SpecSheet!G19),(IF($C$82="01",ABS(SpecSheet!G20),(IF($C$82="10",ABS(SpecSheet!G21),(IF($C$82="11",ABS(SpecSheet!G22),0))))))) -> 39 | D89: =IF($C$82="00",ABS(SpecSheet!H19),(IF($C$82="01",ABS(SpecSheet!H20),(IF($C$82="10",ABS(SpecSheet!H21),(IF($C$82="11",ABS(SpecSheet!H22),0))))))) -> 42 | E89: =IF($C$82="00",ABS(SpecSheet!I19),(IF($C$82="01",ABS(SpecSheet!I20),(IF($C$82="10",ABS(SpecSheet!I21),(IF($C$82="11",ABS(SpecSheet!I22),0))))))) -> 45 | F89: uA
B90: TMR Current average | C90: =(C89+2)/2 -> 20.5 | D90: =(D89+2)/2 -> 22 | E90: =(E89+2)/2 -> 23.5 | F90: uA | G90: TMR current is not constant, but proportional to VDS. See datasheet, page 26
B91: TMR Fault Threshold | C91: =SpecSheet!G25 -> 2.028 | D91: =SpecSheet!H25 -> 2.048 | E91: =SpecSheet!I25 -> 2.068 | F91: V
B92: TMR Cap should be greater than | D92: =((E90*E87/C91)*(((D94+1)/100)+1)) -> 122.7075444 | F92: nF
B93: TMR Cap Populated | D93: 217 | F93: nF
B94: Timer Cap Tolerance | D94: 5 | F94: %
B95: Actual Timer Cap Value | C95: =(1-(D94/100))*D93 -> 206.15 | D95: =D93 -> 217 | E95: =(1+(D94/100))*D93 -> 227.85 | F95: nF
B96: During startup, Timer will trip after | C96: =ROUND(C95*C91/E90,2) -> 17.79 | D96: =D95*D91/D90 -> 20.20072727 | E96: =E95*E91/C90 -> 22.98506341 | F96: ms
B97: =IF((ROUND(C96,1)>ROUND(E87,1)),"","TMR cap should only trip after the load cap has been fully charged. Please select a higher TMR cap value") -> 
B98: During Input Step: | C98: Min | D98: Typ | E98: Max
B99: Current Limit | C99: =C46 -> 69.86138614 | D99: =D46 -> 72 | E99: =E46 -> 74.18181818 | F99: A
B100: Load Current (for constant power load average load current) | D100: =((C6/C8)+(C6/C9))/2 -> 37.32142857 | F100: A | G100: For constant power load, this current is not constant (use average current as approximation)
B101: Current available to charge the output cap | C101: =C99-D100 -> 32.53995757 | D101: =D99-D100 -> 34.67857143 | E101: =E99-D100 -> 36.86038961 | F101: A
B102: Maximum time to charge the Load Capacitor | C102: =General!C21*C12/E101/1000 -> 1.469056637 | D102: =General!D21*C12/D101/1000 -> 1.643666323 | E102: =General!E21*C12/C101/1000 -> 1.839277137 | F102: ms
B103: TMR Current | C103: =ABS(SpecSheet!G24) -> 192 | D103: =ABS(SpecSheet!H24) -> 202 | E103: =ABS(SpecSheet!I24) -> 212 | F103: uA
B104: TMR Fault Threshold | C104: =SpecSheet!G25 -> 2.028 | D104: =SpecSheet!H25 -> 2.048 | E104: =SpecSheet!I25 -> 2.068 | F104: V
B105: TMR Cap should be greater than | D105: =(E103*E102/C104)+(E103*E102/C104*(D94+1)/100) -> 203.807869 | F105: nF
B106: During input step, Timer will trip after | C106: =C95*E104/C103 -> 2.220407292 | D106: =D95*D104/D103 -> 2.200079208 | E106: =E95*E104/C103 -> 2.454134375 | F106: ms
B107: =IF(E102>C106,"TMR cap should only trip after the load cap has been fully charged. Please select a higher TMR cap value","") -> 
B108: During Output Short: Short into 0 ohm resistor | C108: Min | D108: Typ | E108: Max
B109: Current Limit During Output Short | C109: =$C$81/100*C46 -> 13.97227723 | D109: =$C$81/100*D46 -> 14.4 | E109: =$C$81/100*E46 -> 14.83636364 | F109: A
B110: TMR Current | C110: =ABS(SpecSheet!G24) -> 192 | D110: =ABS(SpecSheet!H24) -> 202 | E110: =ABS(SpecSheet!I24) -> 212 | F110: =(SpecSheet!J24) -> uA
B111: TMR Fault Threshold | C111: =SpecSheet!G25 -> 2.028 | D111: =SpecSheet!H25 -> 2.048 | E111: =SpecSheet!I25 -> 2.068 | F111: =SpecSheet!J25 -> V
B112: Timer will trip after | C112: =E95*C111/E110 -> 2.179621698 | D112: =D93*D111/D110 -> 2.200079208 | E112: =E95*E111/C110 -> 2.454134375 | F112: ms
B114: =_xlfn.CONCAT("DURING STARTUP: Please check the SOA of the MOSFET to check if selected MOSFET can handle ",ABS(C9),"V and ",D86,"A for ",INT(D87),"ms. Otherwise, try to change the current limit and/or foldback ratio or the MOSFET.") -> DURING STARTUP: Please check the SOA of the MOSFET to check if selected MOSFET can handle 70V and 3.6A for 9ms. Otherwise, try to change the current limit and/or foldback ratio or the MOSFET.
B115: =_xlfn.CONCAT("DURING INPUT STEP: Please check the SOA of the MOSFET to check if selected MOSFET can handle ",ABS(C12),"V and ",D99,"A for ",INT(D102),"ms. Otherwise, try to change the current limit and/or foldback ratio or the MOSFET.") -> DURING INPUT STEP: Please check the SOA of the MOSFET to check if selected MOSFET can handle 30V and 72A for 1ms. Otherwise, try to change the current limit and/or foldback ratio or the MOSFET.
B116: =_xlfn.CONCAT("DURING OUTPUT SHORT: Please check the SOA of the MOSFET to check if selected MOSFET can handle ",ABS(C9),"V and ",ROUND(E109,3),"A for ",INT(E112),"ms. Otherwise, try to change the current limit and/or foldback ratio or the MOSFET.") -> DURING OUTPUT SHORT: Please check the SOA of the MOSFET to check if selected MOSFET can handle 70V and 14.836A for 2ms. Otherwise, try to change the current limit and/or foldback ratio or the MOSFET.
B118: Start up Mode: dV/dt Control is Enabled
B119: CONTROL_1 [0x0A][6] should be programmed to 1 | G119: Make this equal to or smaller than half of the startup current limit
C120: Min | D120: Typ | E120: Max
B121: Desired Inrush Current | D121: 4 | F121: A
B122: Calculated Ramp Cap Value | D122: =(ABS(SpecSheet!H26)*General!D126*General!D21/'LTC4284 Parallel'!D121/1000)+(D124*ABS(SpecSheet!H26)*General!D126*General!D21/'LTC4284 Parallel'!D121/1000)/100 -> 51.2218249 | F122: nF
B123: RAMP Cap Value Installed | D123: 22 | F123: nF
B124: Ramp Cap Tolerance | D124: 5 | F124: %
B125: Actual Ramp Cap Value | C125: =(1-(D124/100))*D123 -> 20.9 | D125: =D123 -> 22 | E125: =(1+(D124/100))*D123 -> 23.1 | F125: nF | G125: Use 10% foldback to speed up timeout upon starting into resistive short
B126: Actual Inrush Current | C126: =ABS(SpecSheet!G26)*General!C126*General!C21/'LTC4284 Parallel'!E125/1000 -> 7.082836488 | D126: =ABS(SpecSheet!H26)*General!D126*General!D21/'LTC4284 Parallel'!D125/1000 -> 8.869580069 | E126: =ABS(SpecSheet!I26)*General!E126*General!E21/'LTC4284 Parallel'!C125/1000 -> 10.99608839 | F126: A
B127: Foldback Ratio | D127: 10
B128: CONFIG_1 [0x0D][3:2] should be programmed to value | D128: =IF(D127='Register Map'!$E$54,'Register Map'!$D$54,(IF(D127='Register Map'!$E$57,'Register Map'!$D$57,(IF(D127='Register Map'!$E$55,'Register Map'!$D$55,(IF(D127='Register Map'!$E$56,'Register Map'!$D$56,0))))))) -> 11
B129: Current Limit during Startup | C129: =C46*$D$127/100 -> 6.986138614 | D129: =D46*$D$127/100 -> 7.2 | E129: =E46*$D$127/100 -> 7.418181818 | F129: A
B130: =IF(E126>C129,"Inrush current will hit the current limit during start up and make the timer run. If you do not want to hit the current limit during start up, either increase the foldaback ratio or reduce the inrush current by increasing the Ramp cap","") -> Inrush current will hit the current limit during start up and make the timer run. If you do not want to hit the current limit during start up, either increase the foldaback ratio or reduce the inrush current by increasing the Ramp cap
B131: Time to Charge the Load Capacitor | C131: =General!C21*ABS(C9)/E126/1000 -> 11.49044965 | D131: =General!D21*ABS(C9)/D126/1000 -> 14.99507293 | E131: =General!E21*ABS(C9)/C126/1000 -> 19.7166771 | F131: ms
G132: For constant power load, this is not a constant (use average current as approximation)
B133: During Input Step: | C133: Min | D133: Typ | E133: Max
B134: Current Limit | C134: =C46 -> 69.86138614 | D134: =D46 -> 72 | E134: =E46 -> 74.18181818 | F134: A
B135: Load Current | D135: =((C6/C8)+(C6/C9))/2 -> 37.32142857 | F135: A
B136: Current available to charge the output cap | C136: =C134-D135 -> 32.53995757 | D136: =D134-D135 -> 34.67857143 | E136: =E134-D135 -> 36.86038961 | F136: A
B137: Maximum time to charge the Load Capacitor | C137: =General!C21*$C$12/E136/1000 -> 1.469056637 | D137: =General!D21*$C$12/D136/1000 -> 1.643666323 | E137: =General!E21*$C$12/C136/1000 -> 1.839277137 | F137: ms
B138: TMR Current | C138: =ABS(SpecSheet!G23) -> 192 | D138: =ABS(SpecSheet!H23) -> 202 | E138: =ABS(SpecSheet!I23) -> 212 | F138: uA
B139: TMR Fault Threshold | C139: =SpecSheet!G25 -> 2.028 | D139: =SpecSheet!H25 -> 2.048 | E139: =SpecSheet!I25 -> 2.068 | F139: V
B140: TMR Cap should be greater than | D140: =(E138*E137/C139)+(D142+1)*(E138*E137/C139)/100 -> 203.807869 | F140: nF
B141: TMR Cap populated | D141: 220 | F141: nF
B142: Timer Cap Tolerance | D142: 5 | F142: %
B143: Actual Timer Cap Value | C143: =(1-(D142/100))*D141 -> 209 | D143: =D141 -> 220 | E143: =(1+(D142/100))*D141 -> 231 | F143: nF
B144: During input step, Timer will trip after | C144: =C143*C139/E138 -> 1.999301887 | D144: =D143*D139/D138 -> 2.23049505 | E144: =E143*E139/C138 -> 2.4880625 | F144: ms
B145: =IF(E137<C144,"","TMR cap will trip before the system is able to ride through input step. This will shut down the system. Please select a higher TMR cap value") -> 
B146: =IF(AND((E126>C129),(E131>C144)),"Device is starting up in Current Limit and Timer is going to expire before output cap is charged up which will not turn on the circuit properly. ","") -> Device is starting up in Current Limit and Timer is going to expire before output cap is charged up which will not turn on the circuit properly.
B147: During Output Short: Short into 0 ohm resistor | C147: Min | D147: Typ | E147: Max
B148: Current Limit During Output Short | C148: =$C$81/100*C46 -> 13.97227723 | D148: =$C$81/100*D46 -> 14.4 | E148: =$C$81/100*E46 -> 14.83636364 | F148: A
B149: TMR Current | C149: =ABS(SpecSheet!G24) -> 192 | D149: =ABS(SpecSheet!H24) -> 202 | E149: =ABS(SpecSheet!I24) -> 212 | F149: =(SpecSheet!J24) -> uA
B150: TMR Fault Threshold | C150: =SpecSheet!G25 -> 2.028 | D150: =SpecSheet!H25 -> 2.048 | E150: =SpecSheet!I25 -> 2.068 | F150: =SpecSheet!J25 -> V
B151: Timer will trip after | C151: =D141*C150/E149 -> 2.104528302 | D151: =D141*D150/D149 -> 2.23049505 | E151: =D141*E150/C149 -> 2.369583333 | F151: ms
B153: =_xlfn.CONCAT("DURING STARTUP:Please check the SOA of the MOSFET to check if selected MOSFET can handle ",ABS(C9),"V and ",ROUND(D126,3),"A for ",INT(D131),"ms. Otherwise, try to change the current limit and/or foldback ratio or the MOSFET.") -> DURING STARTUP:Please check the SOA of the MOSFET to check if selected MOSFET can handle 70V and 8.87A for 14ms. Otherwise, try to change the current limit and/or foldback ratio or the MOSFET.
B154: =_xlfn.CONCAT("DURING INPUT STEP: Please check the SOA of the MOSFET to check if selected MOSFET can handle ",ABS(C12),"V and ",D134,"A for ",INT(D137),"ms. Otherwise, try to change the current limit and/or foldback ratio or the MOSFET.") -> DURING INPUT STEP: Please check the SOA of the MOSFET to check if selected MOSFET can handle 30V and 72A for 1ms. Otherwise, try to change the current limit and/or foldback ratio or the MOSFET.
B155: =_xlfn.CONCAT("DURING OUTPUT SHORT: Please check the SOA of the MOSFET to check if selected MOSFET can handle ",ABS(C9),"V and ",ROUND(E148,3),"A for ",ROUND(E151,3),"ms. Otherwise, try to change the current limit and/or foldback ratio or the MOSFET.") -> DURING OUTPUT SHORT: Please check the SOA of the MOSFET to check if selected MOSFET can handle 70V and 14.836A for 2.37ms. Otherwise, try to change the current limit and/or foldback ratio or the MOSFET.
B156: Simulate the circuit in LTspice. Use SOAtherm simulation using LTspice to check SOA.
B161: Bill Of Meterials
B162: Component | C162: Value | D162: Units | E162: Quantity | F162: Other Specs
B163: Rs1 | C163: =C27 -> 3 | D163: =D27 -> mΩ | E163: =C31 -> 6 | F163: =_xlfn.CONCAT(Q31,"%",", ",C22,D22) -> 1%, 0.25W
B164: Rs2 | C164: =C27 -> 3 | D164: =D27 -> mΩ | E164: =C31 -> 6 | F164: =_xlfn.CONCAT(Q31,"%",", ",C22,D22) -> 1%, 0.25W
B165: CTMR | C165: =IF(C76="dv/dt Mode",D141,D93) -> 217 | D165: =IF(C76="dv/dt Mode",F141,F93) -> nF | E165: 1 | F165: =IF(C76="dv/dt Mode",_xlfn.CONCAT(D142,F142,", ","25V"),_xlfn.CONCAT(D94,F94,", ","25V")) -> 5%, 25V
B166: CRAMP | C166: =IF(C76="dv/dt Mode",D123,"Do not Install") -> Do not Install | D166: =IF(C76="dv/dt Mode",F123,"") ->  | E166: =IF(C76="dv/dt Mode",1,"") ->  | F166: =IF(C76="dv/dt Mode",_xlfn.CONCAT(D124,F124,", ","25V"),"") -> 
B167: MOSFET (M1) | C167: =C53 -> PSMN4R8-100BSE | E167: =C58 -> 2
B168: MOSFET (M2) | C168: =C53 -> PSMN4R8-100BSE | E168: =C58 -> 2

Sheet LTC4284High Stress Staged Start
B1: High Stress Staged Start Topology
B2: =General!B1 -> Please enter the data in white cells
B3: =General!B2 -> LTC4284 Design Tool
B5: =General!B4 -> System Specifications
B6: =General!B5 -> Power Requirement (W) | C6: =General!C5 -> 1900 | D6: =General!D5 -> W
B7: =General!B6 -> Line Step | C7: =General!C6 -> No
B8: =General!B7 -> Voltage Supply Min (V) | C8: =General!E7 -> 40 | D8: =General!D7 -> V
B9: =General!B8 -> Voltage Supply Max (V) | C9: =General!E8 -> 70 | D9: =General!D8 -> V
B10: =General!B9 -> Nominal Voltage | C10: =General!E9 -> 48 | D10: =General!D9 -> V
B11: =General!B18 -> Selected Output Capacitor Value | C11: =General!C18 -> 1900 | D11: =General!D18 -> uF
B12: =General!B10 -> Step Voltage | C12: =General!C10 -> 30 | D12: =General!D10 -> V
K13: Resistor Power Rating
B14: Sense Resistor Selection | K14: 0.05
B15: Maximum Load Current | C15: =C6/ABS(C8) -> 47.5 | D15: A | K15: 0.062
B16: Current Limit | C16: 70 | D16: A | K16: 0.1
B17: =IF(C16>=C15,"","Current limit should be set above the maximum load current") ->  | K17: 0.125
B18: Maximum Current | C18: =C16 -> 70 | D18: A | K18: 0.25
B19: Current Sense Voltage Threshold | C19: 0.016 | D19: V | K19: 0.5
K20: 1
B21: Maximum Power Dissipation in Sense Resistor bank | C21: =C19*C18 -> 1.12 | D21: W
B22: Power Rating of the sense resistor | C22: 0.25 | D22: W
B23: Suggested Allowed Power Dissipation in Sense Resistor | C23: =C22/2 -> 0.125 | D23: W
B24: Allowed Power Dissipation in Sense Resistor | C24: 0.125 | D24: W
B25: Effective Rsense required | C25: =C19/C18*1000 -> 0.2285714286 | D25: mΩ
B26: Suggest Rsense Value | C26: =C25*C31 -> 2.057142857 | D26: mΩ
B28: Selected resistor value for Rsense | C28: 2 | D28: mΩ
B29: Rsense Tolerance | C29: E96 (1%)
B30: Number of Rsense Required in Parallel to achieve Rsense resistance requirement | C30: =IF((C28/C25)>INT(C28/C25),INT(C28/C25)+1,(C28/C25)) -> 9 | K30: E96 (1%) | L30: 96 | M30: 1 | N30: =IF($C$29=K30,1,0) -> 1 | P30: Active E | Q30: active %
B31: Number of Sense Resistors Required to achieve Rsense Power requirement | C31: =IF((C21/C24)>INT(C21/C24),INT(C21/C24)+1,(C21/C24)) -> 9 | K31: E192 (0.5%) | L31: 192 | M31: 0.5 | N31: =IF($C$29=K31,1,0) -> 0 | P31: =IF(N30=1,96,192) -> 96 | Q31: =IF(N30=1,M30,IF(N31=1,M31,IF(N32=1,M32,IF(N33=1,M33,1)))) -> 1
B32: Number of Sense Resistors Populated per channel | C32: 9 | K32: E192 (0.25%) | L32: 192 | M32: 0.25 | N32: 0
B33: =IF(INT(C32)>=(C31),"","Need to add more sense resistors in order to achieve required safe power dissipation ") ->  | K33: E192 (0.1%) | L33: 192 | M33: 0.1 | N33: =IF($C$29=K33,1,0) -> 0
B34: =IF(INT(C32)>=(C30),"","Need to add more sense resistors in order to achieve required Rsense Value ") -> 
C36: Min | D36: Typ | E36: Max
B37: Actual Effective Rsense | C37: =(C28-(C28*Q31/100))/C32 -> 0.22 | D37: =C28/C32 -> 0.2222222222 | E37: =(C28+(C28*Q31/100))/C32 -> 0.2244444444 | F37: mΩ
B39: Actual Current Sense Voltage Threshold | C39: =0.98*D39 -> 0.01568 | D39: 0.016 | E39: =1.02*D39 -> 0.01632 | F39: V
B40: User might have to change the Current Sense Voltage Threshold based on Actual Effective Rsense value
B41: =_xlfn.CONCAT("Current Sense Voltage Threshold [0x0D][7:4] should be programmed to value ") -> Current Sense Voltage Threshold [0x0D][7:4] should be programmed to value | C41: =(IF(D39='Register Map'!E36,'Register Map'!D36,(IF(D39='Register Map'!E37,'Register Map'!D37,(IF(D39='Register Map'!E38,'Register Map'!D38,(IF(D39='Register Map'!E39,'Register Map'!D39,(IF(D39='Register Map'!E40,'Register Map'!D40,(IF(D39='Register Map'!E41,'Register Map'!D41,(IF(D39='Register Map'!E42,'Register Map'!D42,(IF(D39='Register Map'!E43,'Register Map'!D43,(IF(D39='Register Map'!E44,'Register Map'!D44,(IF(D39='Register Map'!E45,'Register Map'!D45,(IF(D39='Register Map'!E46,'Register Map'!D46,(IF(D39='Register Map'!E47,'Register Map'!D47,(IF(D39='Register Map'!E48,'Register Map'!D48,(IF(D39='Register Map'!E49,'Register Map'!D49,(IF(D39='Register Map'!E50,'Register Map'!D50,(IF(D39='Register Map'!E51,'Register Map'!D51,0)))))))))))))))))))))))))))))))) -> 0001
B43: Actual Maximum Current (Current Limit) | C43: =$C$39/E37*1000 -> 69.86138614 | D43: =$D$39/D37*1000 -> 72 | E43: =$E$39/C37*1000 -> 74.18181818 | F43: A
B44: Actual Power Dissipation per Sense Resistor | C44: =C39*C43/$C$32 -> 0.1217140594 | D44: =D39*D43/$C$32 -> 0.128 | E44: =E39*E43/$C$32 -> 0.1345163636 | F44: W
B45: =IF(D43>C18,"As the Actual Current limit is higher than the desired current limit, power dissipation in the sense resistors will be high.","") -> As the Actual Current limit is higher than the desired current limit, power dissipation in the sense resistors will be high.
B46: =IF(C43<C18,"Min current limit is smaller than desired current limit. ","") -> Min current limit is smaller than desired current limit.
B47: =IF(E44>C24,"Max Power dissipation in sense resistors in more than desired power dissipation","") -> Max Power dissipation in sense resistors in more than desired power dissipation
B48: =IF(D43<C18,"Typical Current limit is smaller than desired current limit. Either increase the current sense voltage threshold or lower the effective Rsense by adding more resistors in parallel","") -> 
B49: =IF(D44>C24,"Typical Power dissipation in sense resistors in more than desired power dissipation","") -> Typical Power dissipation in sense resistors in more than desired power dissipation
B50: MOSFET Selection
B52: Low Rdson Channel or Bypass Channel
B53: MOSFET Part Number | C53: PSMN4R8-100BSE
C54: Min | D54: Typ | E54: Max
B55: MOSFET Rdson | C55: 3.7 | D55: 4.1 | E55: 4.8 | F55: mΩ
B56: Desired power Dissipation per MOSFET | C56: 1 | D56: W
B57: Number of MOSFETs required per Channel | C57: =(E43*SQRT(E55*10^-3/C56)) -> 5.139467124
B58: Number of MOSFETs populated per Channel | C58: 5
B59: Effective Rdson of the Bypass Channel | C59: =C55/C58 -> 0.74 | D59: =D55/C58 -> 0.82 | E59: =E55/C58 -> 0.96 | F59: mΩ
B61: High SOA Channel
B62: MOSFET Part Number | C62: IXTQ170N10P
C63: Min | D63: Typ | E63: Max
B64: MOSFET Rdson | C64: 5 | D64: 7 | E64: 9 | F64: mΩ
B65: Number of MOSFETs installed | C65: 1
B66: Effective Rdson of the High SOA Channel | C66: =C64/C65 -> 5 | D66: =D64/C65 -> 7 | E66: =E64/C65 -> 9 | F66: mΩ
B68: PowerPath | C68: Min | D68: Typ | E68: Max
B69: Effective Rdson of the Power Path | C69: =(C66*C59)/(C59+C66) -> 0.6445993031 | D69: =(D66*D59)/(D59+D66) -> 0.7340153453 | E69: =(E66*E59)/(E59+E66) -> 0.8674698795 | F69: mΩ
B70: Voltage Drop Across the MOSFETs during Current Limit (Bypass + SOA) | C70: =C43*C69/1000 -> 0.04503260082 | D70: =D43*D69/1000 -> 0.05284910486 | E70: =E43*E69/1000 -> 0.06435049288 | F70: V
B71: Maximum DC Curent in Bypass Channel | C71: =C70/C59*1000 -> 60.85486597 | D71: =D70/D59*1000 -> 64.45012788 | E71: =E70/E59*1000 -> 67.03176342 | F71: A
B72: Maximum DC Current in SOA Channel | C72: =C70/C64 -> 0.009006520164 | D72: =D70/D64 -> 0.007549872123 | E72: =E70/E64 -> 0.007150054765 | F72: A
B73: Maximum Current in SOA Channel during a Transient Event | C73: =C43 -> 69.86138614 | D73: =D43 -> 72 | E73: =E43 -> 74.18181818 | F73: =F43 -> A
B74: Maximum DC power dissipation in Bypass channel MOSFET | C74: =((C71/$C$58)^2)*C55/1000 -> 0.5480905775 | D74: =((D71/$C$58)^2)*D55/1000 -> 0.6812263133 | E74: 0.8627054029 | F74: W
B75: Maximum DC power dissipation in SOA channel MOSFET | C75: =((C72/$C$65)^2)*C64/1000 -> 4.055870273e-07 | D75: =((D72/$C$65)^2)*D64/1000 -> 3.990039835e-07 | E75: =((E72/$C$65)^2)*E64/1000 -> 4.601095482e-07 | F75: W
B76: =IF(E74>C56,"Maximum power dissipation per MOSFET in bypass channel is more than desired power dissipation. Either add more MOSFETs in bypass channel or use a lower Rdson MOSFET","") -> 
B77: =IF(E75>C65,"Maximum power dissipation per MOSFET in bypass channel is more than desired power dissipation. Either add more MOSFETs or use a lower Rdson MOSFET","") -> 
B78: =_xlfn.CONCAT("FET BAD THRESHOLD must be set higher than ",ROUND(E70,3), "V. This Threshold can be programmed using register CONFIG_2 [0x0E]") -> FET BAD THRESHOLD must be set higher than 0.064V. This Threshold can be programmed using register CONFIG_2 [0x0E]
B79: FET BAD THRESHOLD | C79: 0.102 | D79: V
B80: FET BAD THRESHOLD [0x0E][7:6] should be programmed to value | C80: =IF(C79='Register Map'!E64,'Register Map'!D64,(IF(C79='Register Map'!E65,'Register Map'!D65,(IF(C79='Register Map'!E66,'Register Map'!D66,(IF(C79='Register Map'!E67,'Register Map'!D67,0))))))) -> 01
B81: =IF(ABS(C79)>ABS(E70),"","FET BAD THRESHOLD must be selected higher that the Maximum Voltage Drop Across MOSFETs during DC Operation") -> 
B83: FET BAD TIMER DELAY: If voltage across the MOSFET stays above the FET BAD THRESHOLD voltage for time euqal to FET BAD TIMER DELAY, MOSFET is flagged as BAD MOSFET. It is important that FET BAD TIMER Delay should be set higer than time for all the valid secnario like charging the output cap during startup or input step where MOSFET operates in linear region.
B85: FET BAD TIMER Delay | C85: 0.512 | D85: sec
B86: FET BAD TIMER Delay [0X0E][5:4] should be programmed to value | C86: =IF(C85='Register Map'!E69,'Register Map'!D69,(IF(C85='Register Map'!E70,'Register Map'!D70,(IF(C85='Register Map'!E71,'Register Map'!D71,(IF(C85='Register Map'!E72,'Register Map'!D72,0))))))) -> 01
B89: Timer Cap Calculation
B91: Start up Mode : Please select if system should start up using dv/dt mode (using RAMP cap) or Current Limit Mode | C91: dv/dt Mode
B92: =IF(C91="dv/dt Mode","Go to Row#117","Go to Row#83") -> Go to Row#117
B94: Start up Mode : Start up Current is Controlled by Start up Foldback in Current Limit Mode | D94: dv/dt Control is disabled
B95: CONTROL_1 [0x0A][6] should be programmed to 0
B96: Foldback Ratio | C96: 20 | D96: Use 10% foldback whenever posible
B97: CONFIG_1 [0x0D][3:2] should be programmed to value | C97: =IF(C96='Register Map'!$E$54,'Register Map'!$D$54,(IF(C96='Register Map'!$E$57,'Register Map'!$D$57,(IF(C96='Register Map'!$E$55,'Register Map'!$D$55,(IF(C96='Register Map'!$E$56,'Register Map'!$D$56,0))))))) -> 10
C98: Min | D98: Typ | E98: Max
B99: Total Inrush Current | C99: =C96*C43/100 -> 13.97227723 | D99: =C96*D43/100 -> 14.4 | E99: =C96*E43/100 -> 14.83636364 | F99: A
B100: Maximum time to charge the Load Capacitor | C100: =General!C21*ABS(C9)/E99/1000 -> 8.516237745 | D100: =General!D21*ABS(C9)/D99/1000 -> 9.236111111 | E100: =General!E21*ABS(C9)/C99/1000 -> 9.994791667 | F100: ms
B102: TMR Current | C102: =IF($C$97="00",ABS(SpecSheet!G19),(IF($C$97="01",ABS(SpecSheet!G20),(IF($C$97="10",ABS(SpecSheet!G21),(IF($C$97="11",ABS(SpecSheet!G22),0))))))) -> 39 | D102: =IF($C$97="00",ABS(SpecSheet!H19),(IF($C$97="01",ABS(SpecSheet!H20),(IF($C$97="10",ABS(SpecSheet!H21),(IF($C$97="11",ABS(SpecSheet!H22),0))))))) -> 42 | E102: =IF($C$97="00",ABS(SpecSheet!I19),(IF($C$97="01",ABS(SpecSheet!I20),(IF($C$97="10",ABS(SpecSheet!I21),(IF($C$97="11",ABS(SpecSheet!I22),0))))))) -> 45 | F102: uA
B103: TMR Current | C103: =(C102+2)/2 -> 20.5 | D103: =(D102+2)/2 -> 22 | E103: =(E102+2)/2 -> 23.5 | F103: uA
B104: TMR Fault Threshold | C104: =SpecSheet!G25 -> 2.028 | D104: =SpecSheet!H25 -> 2.048 | E104: =SpecSheet!I25 -> 2.068 | F104: V
B105: TMR Cap should be greater than | D105: =((E103*E100/C104)*(1+((D107+1)/100))) -> 122.7664006 | F105: nF
B106: TMR Cap Populated | D106: 220 | F106: nF
B107: Timer Cap Tolerance | D107: 5 | F107: %
B108: Actual Timer Cap Value | C108: =(1-(D107/100))*D106 -> 209 | D108: =D106 -> 220 | E108: =(1+(D107/100))*D106 -> 231 | F108: nF
B109: During startup, Timer will trip after | C109: =C108*C104/E103 -> 18.03625532 | D109: =D108*D104/D103 -> 20.48 | E109: =E108*E104/C103 -> 23.30282927 | F109: ms
B110: =IF(C109>E100,"","TMR cap should only trip after the load cap has been fully charged. Please select a higher TMR cap value") -> 
B111: During Input Step: | C111: Min | D111: Typ | E111: Max
B112: Current Limit | C112: =C43 -> 69.86138614 | D112: =D43 -> 72 | E112: =E43 -> 74.18181818 | F112: A
B113: Load Current (For constant power load, average load current) | D113: =((C6/C8)+(C6/C9))/2 -> 37.32142857 | F113: A
B114: Current available to charge the output cap | C114: =C112-D113 -> 32.53995757 | D114: =D112-D113 -> 34.67857143 | E114: =E112-D113 -> 36.86038961 | F114: A
B115: Maximum time to charge the Load Capacitor | C115: =General!C21*C12/E114/1000 -> 1.469056637 | D115: =General!D21*C12/D114/1000 -> 1.643666323 | E115: =General!E21*C12/C114/1000 -> 1.839277137 | F115: ms
B116: TMR Current | C116: =ABS(SpecSheet!G24) -> 192 | D116: =ABS(SpecSheet!H24) -> 202 | E116: =ABS(SpecSheet!I24) -> 212 | F116: uA
B117: TMR Fault Threshold | C117: =SpecSheet!G25 -> 2.028 | D117: =SpecSheet!H25 -> 2.048 | E117: =SpecSheet!I25 -> 2.068 | F117: V
B118: TMR Cap should be greater than | D118: =((E116*E115/C117)*(1+((D107+1)/100))) -> 203.807869 | F118: nF
B119: During input step, Timer will trip after | C119: =C108*C117/E116 -> 1.999301887 | D119: =D108*D117/D116 -> 2.23049505 | E119: =E108*E117/C116 -> 2.4880625 | F119: ms
B120: =IF(E115>C119,"Timer will expire before the system is able to ride through the step. Use a bigger Timer cap","") -> 
B121: During Output Short: Short into 0 ohm Resistor
B122: Current Limit | C122: =$C$96*C43/100 -> 13.97227723 | D122: =$C$96*D43/100 -> 14.4 | E122: =$C$96*E43/100 -> 14.83636364 | F122: A
B123: During input step, Timer will trip after | C123: =C119 -> 1.999301887 | D123: =D119 -> 2.23049505 | E123: 2.4880625 | F123: ms
B125: =_xlfn.CONCAT("DURING STARTUP: Please check the SOA of the MOSFET in high SOA channel to check if selected MOSFET can handle ",ABS(C9),"V and ",ROUND(E99,3),"A for ",ROUND(E100,3),"ms. Otherwise, try to change the current limit and/or foldback ratio or the MOSFET.") -> DURING STARTUP: Please check the SOA of the MOSFET in high SOA channel to check if selected MOSFET can handle 70V and 14.836A for 9.995ms. Otherwise, try to change the current limit and/or foldback ratio or the MOSFET.
B126: =_xlfn.CONCAT("DURING INPUT STEP: Please check the SOA of the MOSFET in high SOA channel to check if selected MOSFET can handle ",ABS(C12),"V and ",ROUND(E112,3),"A for ",ROUND(E115,3),"ms. Otherwise, try to change the current limit and/or foldback ratio or the MOSFET.") -> DURING INPUT STEP: Please check the SOA of the MOSFET in high SOA channel to check if selected MOSFET can handle 30V and 74.182A for 1.839ms. Otherwise, try to change the current limit and/or foldback ratio or the MOSFET.
B127: =_xlfn.CONCAT("DURING OUTPUT SHORT: Please check the SOA of the MOSFET to check if selected MOSFET can handle ",ABS(C9),"V and ",ROUND(E122,3),"A for ",INT(E123),"ms. Otherwise, try to change the current limit and/or foldback ratio or the MOSFET.") -> DURING OUTPUT SHORT: Please check the SOA of the MOSFET to check if selected MOSFET can handle 70V and 14.836A for 2ms. Otherwise, try to change the current limit and/or foldback ratio or the MOSFET.
B129: Start up Mode: dV/dt Control is Enabled
B130: CONTROL_1 [0x0A][6] should be programmed to 1
C131: Min | D131: Typ | E131: Max
B132: Desired Inrush Current | D132: 8 | F132: A
B133: Calculated Ramp Cap Value | D133: =ABS(SpecSheet!H26)*General!D126*General!D21/D132/1000 -> 24.39134519 | F133: nF
B134: RAMP Cap Value Installed | D134: 25.67 | F134: nF
B135: Ramp Cap Tolerance | D135: 5 | F135: %
B136: Actual Ramp Cap Value | C136: =(1-(D135/100))*D134 -> 24.3865 | D136: =D134 -> 25.67 | E136: =(1+(D135/100))*D134 -> 26.9535 | F136: nF
B137: Actual Inrush Current | C137: =ABS(SpecSheet!G26)*General!C126*General!C21/C136/1000 -> 6.709184297 | D137: =ABS(SpecSheet!H26)*General!D126*General!D21/D136/1000 -> 7.601509993 | E137: =ABS(SpecSheet!I26)*General!E126*General!E21/E136/1000 -> 8.526471417 | F137: A
B138: Foldback Ratio | D138: 20
B139: CONFIG_1 [0x0D][3:2] should be programmed to value | D139: =IF(D138='Register Map'!$E$54,'Register Map'!$D$54,(IF(D138='Register Map'!$E$57,'Register Map'!$D$57,(IF(D138='Register Map'!$E$55,'Register Map'!$D$55,(IF(D138='Register Map'!$E$56,'Register Map'!$D$56,0))))))) -> 10
B140: Current Limit during Startup | C140: =C43*$D$138/100 -> 13.97227723 | D140: =D43*$D$138/100 -> 14.4 | E140: =E43*$D$138/100 -> 14.83636364 | F140: A
B141: =IF(D137>D132,"Inrush current is higher than desired value","") -> 
B142: Time to Charge the Load Capacitor | C142: =General!C21*ABS(C9)/E137/1000 -> 14.81855668 | D142: =General!D21*ABS(C9)/D137/1000 -> 17.49652373 | E142: =General!E21*ABS(C9)/C137/1000 -> 20.81475092 | F142: ms
B144: During Input Step: | C144: Min | D144: Typ | E144: Max
B145: Current Limit | C145: =C43 -> 69.86138614 | D145: =D43 -> 72 | E145: =E43 -> 74.18181818 | F145: A
B146: Load Current | D146: =((C6/C9)+(C6/C8))/2 -> 37.32142857 | F146: A
B147: Current available to charge the output cap | C147: =C145-D146 -> 32.53995757 | D147: =D145-D146 -> 34.67857143 | E147: =E145-D146 -> 36.86038961 | F147: A
B148: Maximum time to charge the Load Capacitor | C148: =General!C21*$C$12/E147/1000 -> 1.469056637 | D148: =General!D21*$C$12/D147/1000 -> 1.643666323 | E148: =General!E21*$C$12/C147/1000 -> 1.839277137 | F148: ms
B149: TMR Current | C149: =ABS(SpecSheet!G23) -> 192 | D149: =ABS(SpecSheet!H23) -> 202 | E149: =ABS(SpecSheet!I23) -> 212 | F149: uA
B150: TMR Fault Threshold | C150: =SpecSheet!G25 -> 2.028 | D150: =SpecSheet!H25 -> 2.048 | E150: =SpecSheet!I25 -> 2.068 | F150: V
B151: TMR Cap should be greater than | D151: =((E149*E148/C150)*(1+(1+D153)/100)) -> 203.807869 | F151: nF
B152: TMR Cap populated | D152: 220 | F152: nF
B153: Timer Cap Tolerance | D153: 5 | F153: %
B154: Actual Timer Cap Value | C154: =(1-(D153/100))*D152 -> 209 | D154: =D152 -> 220 | E154: =(1+(D153/100))*D152 -> 231 | F154: nF
B155: During input step, Timer will trip after | C155: =C154*C150/E149 -> 1.999301887 | D155: =D154*D150/D149 -> 2.23049505 | E155: =E154*E150/C149 -> 2.4880625 | F155: ms
B156: =IF(E148>C155,"Timer will expire before the load cap has been fully charged and will shut the system down. Install a bigger load cap or increase the current limit","") -> 
B157: =IF(AND((C140<E137),(C155<E142)),"During Startup, timer will expire before load cap gets fully charged and systme will never turn on. Either increase the Timer cap or increase inrsuh current","") -> 
B158: During Output Short: Short into 0 ohm Resistor
B159: Current Limit | C159: =$D$138*C43/100 -> 13.97227723 | D159: =$D$138*D43/100 -> 14.4 | E159: =$D$138*E43/100 -> 14.83636364 | F159: A
B160: During input step, Timer will trip after | C160: =C155 -> 1.999301887 | D160: =D155 -> 2.23049505 | E160: 2.4880625 | F160: ms
B161: =IF(AND((D137>D140),(D142>D155)),"Device is starting up in Current Limit and Timer is going to expire before output cap is charged up which will not turn on the circuit properly. ","") -> 
B162: =_xlfn.CONCAT("DURING STARTUP:Please check the SOA of the MOSFET in high SOA channel to check if selected MOSFET can handle ",ABS(C9),"V and ",ROUND(E137,3),"A for ",ROUND(E142,3),"ms. Otherwise, try to change the current limit and/or foldback ratio or the MOSFET.") -> DURING STARTUP:Please check the SOA of the MOSFET in high SOA channel to check if selected MOSFET can handle 70V and 8.526A for 20.815ms. Otherwise, try to change the current limit and/or foldback ratio or the MOSFET.
B163: =_xlfn.CONCAT("DURING INPUT STEP: Please check the SOA of the MOSFET in high SOA channel to check if selected MOSFET can handle ",ABS(C12),"V and ",ROUND(E145,3),"A for ",ROUND(E148,3),"ms. Otherwise, try to change the current limit and/or foldback ratio or the MOSFET.") -> DURING INPUT STEP: Please check the SOA of the MOSFET in high SOA channel to check if selected MOSFET can handle 30V and 74.182A for 1.839ms. Otherwise, try to change the current limit and/or foldback ratio or the MOSFET.
B164: =_xlfn.CONCAT("DURING OUTPUT SHORT: Please check the SOA of the MOSFET in high SOA channel to check if selected MOSFET can handle ",ABS(C9),"V and ",ROUND(E159,3),"A for ",ROUND(E160,3),"ms. Otherwise, try to change the current limit and/or foldback ratio or the MOSFET.") -> DURING OUTPUT SHORT: Please check the SOA of the MOSFET in high SOA channel to check if selected MOSFET can handle 70V and 14.836A for 2.488ms. Otherwise, try to change the current limit and/or foldback ratio or the MOSFET.
B165: Simulate the circuit in LTspice. Use SOAtherm simulation using LTspice to check SOA.
B168: Bill Of Meterials
B169: Component | C169: Value | D169: Units | E169: Quantity | F169: Other Specs
B170: Rs1 | C170: =C28 -> 2 | D170: =D28 -> mΩ | E170: =C32 -> 9 | F170: =_xlfn.CONCAT(Q31,"%",", ",C22,D22) -> 1%, 0.25W
B171: CTMR | C171: =IF(C91="dv/dt Mode",D152,D106) -> 220 | D171: =IF(C91="dv/dt Mode",F152,F106) -> nF | E171: 1 | F171: =IF(C91="dv/dt Mode",_xlfn.CONCAT(D153,F153,", ","25V"),_xlfn.CONCAT(D107,F107,", ","25V")) -> 5%, 25V
B172: CRAMP | C172: =IF(C91="dv/dt Mode",D134,"Do not Install") -> 25.67 | D172: =IF(C91="dv/dt Mode",F134,"") -> nF | E172: =IF(C91="dv/dt Mode",1,"") -> 1 | F172: =IF(C91="dv/dt Mode",_xlfn.CONCAT(D135,F135,", ","25V"),"") -> 5%, 25V
B173: MOSFET (M1) | C173: =C62 -> IXTQ170N10P | E173: =C65 -> 1
B174: MOSFET (M2) | C174: =C53 -> PSMN4R8-100BSE | E174: =C58 -> 5

Sheet LTC4284 Low Stress Staged Start
B1: Low Stress Staged Start Topology
B2: =General!B1 -> Please enter the data in white cells
B3: =General!B2 -> LTC4284 Design Tool
B5: =General!B4 -> System Specifications
B6: =General!B5 -> Power Requirement (W) | C6: =General!C5 -> 1900 | D6: =General!D5 -> W
B7: =General!B6 -> Line Step | C7: =General!C6 -> No
B8: =General!B7 -> Voltage Supply Min (V) | C8: =General!E7 -> 40 | D8: =General!D7 -> V
B9: =General!B8 -> Voltage Supply Max (V) | C9: =General!E8 -> 70 | D9: =General!D8 -> V
B10: =General!B9 -> Nominal Voltage | C10: =General!E9 -> 48 | D10: =General!D9 -> V
B11: =General!B18 -> Selected Output Capacitor Value | C11: =General!C18 -> 1900 | D11: =General!D18 -> uF
B12: Maximum Load Current | C12: =C6/ABS(C8) -> 47.5 | D12: A
B13: Current Limit of the system | C13: 70 | D13: A
B14: =IF(C13>=C12,"","Current limit should be set above the maximum load current") -> 
B15: Current Limit of Low Rdson Channel | C15: 66 | D15: A
B16: Current Limit of Trickle Channel | C16: 4 | D16: A
B18: =IF(SUM(C15:C16)=C13,"","Current limit of the system is not equal to sum of the current limits of noth the channels") ->  | K18: Resistor Power Rating
B19: Sense Resistor Selection | K19: 0.05
B20: Low Rdson Channel
K21: 0.062
B22: Current Limit of Low Rdson Channel | C22: =C15 -> 66 | D22: A | K22: 0.1
K23: 0.125
B24: Maximum Current | C24: =C22 -> 66 | D24: A | K24: 0.25
B25: Current Sense Voltage Threshold | C25: 0.016 | D25: V | K25: 0.5
K26: 1
B27: Maximum Power Dissipation in Sense Resistor Per Channel | C27: =C25*C24 -> 1.056 | D27: W
B28: Power Rating of the sense resistor | C28: 0.25 | D28: W
B29: Suggested Allowed Power Dissipation in Sense Resistor | C29: =C28/2 -> 0.125 | D29: W
B30: Allowed Power Dissipation in Sense Resistor | C30: 0.15 | D30: W
B32: Effective Rsense required per Channel | C32: =C25/C24*1000 -> 0.2424242424 | D32: mΩ
B33: Suggested resistor value of Rsense | C33: =C32*C37 -> 1.706666667 | D33: mΩ
B34: Installed resistor value for Rsense | C34: 2 | D34: mΩ
B35: Rsense Tolerance | C35: E96 (1%)
B36: Number of Rsense Required in Parallel to achieve Rsense resistance requirement | C36: =IF(INT(C34/C32)<(C34/C32),INT(C34/C32)+1,(C34/C32)) -> 9
B37: Number of Sense Resistors Required to achieve Rsense Power requirement | C37: =C27/C30 -> 7.04 | K37: E96 (1%) | L37: 96 | M37: 1 | N37: =IF($C$35=K37,1,0) -> 1 | P37: Active E | Q37: active %
B38: Number of Sense Resistors Populated per channel | C38: 9 | K38: E192 (0.5%) | L38: 192 | M38: 0.5 | N38: =IF($C$35=K38,1,0) -> 0 | P38: =IF(N37=1,96,192) -> 96 | Q38: =IF(N37=1,M37,IF(N38=1,M38,IF(N39=1,M39,IF(N40=1,M40,1)))) -> 1
B39: =IF(INT(C38)>=MAX(INT(C37)),"","Need to add more sense resistors in order to achieve required safe power dissipation number ") ->  | K39: E192 (0.25%) | L39: 192 | M39: 0.25 | N39: 0
B40: =IF(INT(C38)>=MAX(INT(C36)),"","Need to add more sense resistors in order to achieve required Rsense Value ") ->  | K40: E192 (0.1%) | L40: 192 | M40: 0.1 | N40: =IF($C$35=K40,1,0) -> 0
C41: Min | D41: Typ | E41: Max
B42: Actual Effective Rsense | C42: =(C34-(C34*Q38/100))/C38 -> 0.22 | D42: =C34/C38 -> 0.2222222222 | E42: =(C34+(C34*Q38/100))/C38 -> 0.2244444444 | F42: mΩ
B44: Actual Current Sense Voltage Threshold | C44: =0.98*D44 -> 0.0147 | D44: 0.015 | E44: =1.02*D44 -> 0.0153 | F44: V
B45: User might have to change the value of the Actual Current Sense Voltage Threshold because of the value of the sense resistor available. This can change the power requirements and user will have to redo the calculations by changing the Current Sense Voltage Threshold
B46: =_xlfn.CONCAT("Current Sense Voltage Threshold [0x0D][7:4] should be programmed to value ") -> Current Sense Voltage Threshold [0x0D][7:4] should be programmed to value | C46: =(IF(D44='Register Map'!E36,'Register Map'!D36,(IF(D44='Register Map'!E37,'Register Map'!D37,(IF(D44='Register Map'!E38,'Register Map'!D38,(IF(D44='Register Map'!E39,'Register Map'!D39,(IF(D44='Register Map'!E40,'Register Map'!D40,(IF(D44='Register Map'!E41,'Register Map'!D41,(IF(D44='Register Map'!E42,'Register Map'!D42,(IF(D44='Register Map'!E43,'Register Map'!D43,(IF(D44='Register Map'!E44,'Register Map'!D44,(IF(D44='Register Map'!E45,'Register Map'!D45,(IF(D44='Register Map'!E46,'Register Map'!D46,(IF(D44='Register Map'!E47,'Register Map'!D47,(IF(D44='Register Map'!E48,'Register Map'!D48,(IF(D44='Register Map'!E49,'Register Map'!D49,(IF(D44='Register Map'!E50,'Register Map'!D50,(IF(D44='Register Map'!E51,'Register Map'!D51,0)))))))))))))))))))))))))))))))) -> 0000
B49: Actual Maximum Current | C49: =$C$44/E42*1000 -> 65.4950495 | D49: =$D$44/D42*1000 -> 67.5 | E49: =$E$44/C42*1000 -> 69.54545455 | F49: A
B50: Actual Power Dissipation per Sense Resistor | C50: =$D$44*C49/INT($C$38) -> 0.1091584158 | D50: =$D$44*D49/INT($C$38) -> 0.1125 | E50: =$D$44*E49/INT($C$38) -> 0.1159090909 | F50: W
B51: Actual Current Limit for the System | C51: =C49 -> 65.4950495 | D51: =D49 -> 67.5 | E51: =E49 -> 69.54545455 | F51: A
B52: =IF(E50>(C30),"Max power dissipation in sense resistors is higher than desired value. ","") -> 
B53: =IF(C24>C51,"Min current limit for the system is lower than the desired. ","") -> Min current limit for the system is lower than the desired.
B54: =IF(D50>(C30),"Typical power dissipation in sense resistors is higher than desired value. You can either increase the number of sense resistors in the channel or decrease the actual current sense voltage threshold or use sense resistor with higher power rating","") -> 
B55: =IF(C24>D51,"Tyical current limit for the system is lower than the desired. Either increase current sense voltage threshold or lower the effective Rsense by adding more resistors","") -> 
B56: Trickle Channel
B58: Current Limit | C58: 4 | D58: A
B59: =IF(C58>=C16,"","Current limit should be set above the maximum load current") -> 
B60: Maximum Current | C60: =C58 -> 4 | D60: A
B61: Current Sense Voltage Threshold | C61: =D44 -> 0.015 | D61: V
B63: Maximum Power Dissipation in Sense Resistor Per Channel | C63: =C61*C60 -> 0.06 | D63: W
B64: Power Rating of the sense resistor | C64: 0.25 | D64: W
B65: Suggested Allowed Power Dissipation in Sense Resistor | C65: =C64/2 -> 0.125 | D65: W
B66: Allowed Power Dissipation in Sense Resistor | C66: 0.125 | D66: W
B67: Number of Sense Resistors Required to achieve Rsense Power requirement | C67: =C63/C66 -> 0.48
B68: Number of Sense Resistors Populated per channel | C68: 1
B69: =IF(INT(C68)>=INT(C67),"","Need to add more sense resistors in order to achieve required safe power dissipation number") -> 
B70: Effective Rsense required per Channel | C70: =C61/C60*1000 -> 3.75 | D70: mΩ
B71: Installed resistor value for Rsense | C71: 4 | D71: mΩ
B72: Rsense Tolerance | C72: E96 (1%)
B73: Number of Rsense Required in Parallel to achieve Rsense resistance requirement | C73: =C71/C70 -> 1.066666667
C76: Min | D76: Typ | E76: Max
B77: Actual Effective Rsense | C77: =(C71-(C71*Q38/100))/C68 -> 3.96 | D77: =C71/C68 -> 4 | E77: =(C71+(C71*Q38/100))/C68 -> 4.04 | F77: mΩ
B79: Actual Maximum Current | C79: =$C$44/E77*1000 -> 3.638613861 | D79: =$D$44/D77*1000 -> 3.75 | E79: =$E$44/C77*1000 -> 3.863636364 | F79: A
B80: Actual Power Dissipation per Sense Resistor | C80: =$C$44*C79/INT($C$36) -> 0.005943069307 | D80: =$D$44*D79/INT($C$36) -> 0.00625 | E80: =$E$44*E79/INT($C$36) -> 0.006568181818 | F80: W
B81: =IF(C80>C66,"Too much power dissipation in the sense resistor. Either increase the number of sense resistors or use a higher value sense resistor or lower the current","") -> 
B82: =IF(C79<C60,"Current limit of the trickle channel is lower than the desired value","") -> Current limit of the trickle channel is lower than the desired value
B83: Total Current Limit of the System | C83: =C79+C51 -> 69.13366337 | D83: =D79+D51 -> 71.25 | E83: 73.40909091 | F83: A
B84: =IF(D83<C13,"Typical Current limit of the system is lower than the desired current limit. Either increase the Current Sense Voltage Threshold or lower the value of Rsense.","") -> 
B85: =IF(C83<C13,"Min Current limit of the system is lower than the desired current limit","") -> Min Current limit of the system is lower than the desired current limit
B86: Averaging Resistors
B87: RA1 to RA2 Ratio | D87: =D77/D42 -> 18
B88: Selected value for RA1 | D88: 15 | F88: Ω
B89: Suggested value for RA2 | D89: =D87/D88 -> 1.2 | F89: Ω
B90: Selected value for RA2 | D90: 1 | F90: Ω
B92: MOSFET Selection
B93: Low Rdson Channel
B94: MOSFET Part Number | C94: IPT020N10N3
C95: Min | D95: Typ | E95: Max
B96: MOSFET Rdson | C96: 1 | D96: 1.7 | E96: 2 | F96: mΩ
B97: Desired power Dissipation per MOSFET | C97: 1 | D97: W
B98: Number of MOSFETs required | C98: =IF((E49*SQRT(E96*10^-3/C97))>1,INT(E49*SQRT(E96*10^-3/C97)),1) -> 3
B99: Number of MOSFETs populated per Channel | C99: 3
B100: Power Dissipation Per MOSFET | C100: =C49*C49*C96/(1000*INT(C99)*INT(C99)) -> 0.47662239 | D100: =D49*D49*D96/(1000*INT(C99)*INT(C99)) -> 0.860625 | E100: =E49*E49*E96/(1000*INT(C99)*INT(C99)) -> 1.074793388 | F100: W
B101: Voltage Drop Across MOSFETs during current limit | C101: =C49*C96/(1000*INT(C99)) -> 0.02183168317 | D101: =D49*D96/(1000*INT(C99)) -> 0.03825 | E101: =E49*E96/(1000*INT(C99)) -> 0.04636363636 | F101: V
B102: =IF(C101>C97,"Power dissipation per MOSFET is higher than the desired value","") -> 
B103: Trickle Channel
B104: MOSFET Part Number | C104: PSMN4R8-100BSE
C105: Min | D105: Typ | E105: Max
B106: MOSFET Rdson | C106: 3.7 | D106: 4.1 | E106: 4.8 | F106: mΩ
B107: Desired power Dissipation per MOSFET | C107: 1 | D107: W
B108: Number of MOSFETs required | C108: =IF((E79*SQRT(E106*10^-3/C107))>1,INT(E79*SQRT(E106*10^-3/C107)),1) -> 1
B109: Number of MOSFETs populated per Channel | C109: 1
B110: Power Dissipation Per MOSFET | C110: =C77*C77*C106/(1000*INT(C109)*INT(C109)) -> 0.05802192 | D110: =D77*D77*D106/(1000*INT(C109)*INT(C109)) -> 0.0656 | E110: =E77*E77*E106/(1000*INT(C109)*INT(C109)) -> 0.07834368 | F110: W
B111: Voltage Drop Across MOSFETs during current limit | C111: =C77*C106/(1000*INT(C109)) -> 0.014652 | D111: =D77*D106/(1000*INT(C109)) -> 0.0164 | E111: =E77*E106/(1000*INT(C109)) -> 0.019392 | F111: V
B112: =IF(D111>C107,"Typical Power dissipation per MOSFET is higher than the desired value","") -> 
B113: =IF(C111>C107,"Min Power dissipation per MOSFET is higher than the desired value","") -> 
B114: =_xlfn.CONCAT("FET BAD THRESHOLD must be set higher than ",MAX(ROUND(E111,3),ROUND(E101,3)), "V. This Threshold can be programmed using register CONFIG_2 [0x0E]") -> FET BAD THRESHOLD must be set higher than 0.046V. This Threshold can be programmed using register CONFIG_2 [0x0E]
B115: FET BAD THRESHOLD | C115: 0.143 | D115: V
B116: FET BAD THRESHOLD [0x0E][7:6] should be programmed to value | C116: =IF(C115='Register Map'!E64,'Register Map'!D64,(IF(C115='Register Map'!E65,'Register Map'!D65,(IF(C115='Register Map'!E66,'Register Map'!D66,(IF(C115='Register Map'!E67,'Register Map'!D67,0))))))) -> 10
B117: =IF(ABS(C115)>MAX(ABS(E111),ABS(E101)),"","FET BAD THRESHOLD must be selected higher that the Maximum Voltage Drop Across MOSFETs during DC Operation") -> 
B119: FET BAD TIMER DELAY: If voltage across the MOSFET stays above the FET BAD THRESHOLD voltage for time euqal to FET BAD TIMER DELAY, MOSFET is flagged as BAD MOSFET. It is important that FET BAD TIMER Delay should be set higer than time for all the valid secnario like charging the output cap during startup or input step where MOSFET operates in linear region.
B121: FET BAD TIMER Delay | C121: 0.256 | D121: sec
B122: FET BAD TIMER Delay [0X0E][5:4] should be programmed to value | C122: =IF(C121='Register Map'!E69,'Register Map'!D69,(IF(C121='Register Map'!E70,'Register Map'!D70,(IF(C121='Register Map'!E71,'Register Map'!D71,(IF(C121='Register Map'!E72,'Register Map'!D72,0))))))) -> 00
B125: Timer Cap Calculation
B127: Start up Mode : Please select if system should start up using dv/dt mode (using RAMP cap) or Current Limit Mode | C127: dv/dt Mode
B130: Start up Mode : Start up Current is Controlled by Start up Foldback in Current Limit Mode | D130: dv/dt Control is disabled (Not Recommended)
B131: CONTROL_1 [0x0A][6] should be programmed to 0
B132: Foldback Ratio | C132: 50 | G132: Use 10% foldback whenever posible.
B133: CONFIG_1 [0x0D][3:2] should be programmed to value | C133: =IF(C132='Register Map'!$E$54,'Register Map'!$D$54,(IF(C132='Register Map'!$E$57,'Register Map'!$D$57,(IF(C132='Register Map'!$E$55,'Register Map'!$D$55,(IF(C132='Register Map'!$E$56,'Register Map'!$D$56,0))))))) -> 01
C134: Min | D134: Typ | E134: Max
B135: Total Inrush Current | C135: =C132*C79/100 -> 1.819306931 | D135: =C132*D79/100 -> 1.875 | E135: =C132*E79/100 -> 1.931818182 | F135: A
B137: Inrush Current per FET | C137: =C135/C109 -> 1.819306931 | D137: =D135/C109 -> 1.875 | E137: =E135/C109 -> 1.931818182 | F137: A
B138: Maximum time to charge the Load Capacitor | C138: =General!C21*ABS(C9)/E135/1000 -> 65.40470588 | D138: =General!D21*ABS(C9)/D135/1000 -> 70.93333333 | E138: =General!E21*ABS(C9)/C135/1000 -> 76.76 | F138: ms
B140: TMR Current | C140: =IF($C$133="00",ABS(SpecSheet!G19),(IF($C$133="01",ABS(SpecSheet!G20),(IF($C$133="10",ABS(SpecSheet!G21),(IF($C$133="11",ABS(SpecSheet!G22),0))))))) -> 96 | D140: =IF($C$133="00",ABS(SpecSheet!H19),(IF($C$133="01",ABS(SpecSheet!H20),(IF($C$133="10",ABS(SpecSheet!H21),(IF($C$133="11",ABS(SpecSheet!H22),0))))))) -> 102 | E140: =IF($C$133="00",ABS(SpecSheet!I19),(IF($C$133="01",ABS(SpecSheet!I20),(IF($C$133="10",ABS(SpecSheet!I21),(IF($C$133="11",ABS(SpecSheet!I22),0))))))) -> 108 | F140: uA
B141: TMR Current | C141: =(C140+2)/2 -> 49 | D141: =(D140+2)/2 -> 52 | E141: =(E140+2)/2 -> 55 | F141: uA | G141: Timer current is not a constast current and depends upon Vds. Use the average current for calculations.
B142: TMR Fault Threshold | C142: =SpecSheet!G25 -> 2.028 | D142: =SpecSheet!H25 -> 2.048 | E142: =SpecSheet!I25 -> 2.068 | F142: V
B143: TMR Cap should be greater than | D143: =(E141*E138/C142)*(1+((D145+1)/100)) -> 2206.66075 | F143: nF
B144: TMR Cap Populated | D144: 1991 | F144: nF
B145: Timer Cap Tolerance | D145: 5 | F145: %
B146: Actual Timer Cap Value | C146: =(1-(D145/100))*D144 -> 1891.45 | D146: =D144 -> 1991 | E146: =(1+(D145/100))*D144 -> 2090.55 | F146: nF
B147: During startup, Timer will trip after | C147: =C146*C142/E141 -> 69.74292 | D147: =D146*D142/D141 -> 78.41476923 | E147: =E146*E142/C141 -> 88.22974286 | F147: ms
B148: =IF(C147>E138,"","TMR cap should only trip after the load cap has been fully charged. Please select a higher TMR cap value") -> TMR cap should only trip after the load cap has been fully charged. Please select a higher TMR cap value
B149: During Output Short: Short into 0 ohm resistor
B150: Current Limit During Output Short (For Trickle Channel) | C150: =C132*C79/100 -> 1.819306931 | D150: =C132*D79/100 -> 1.875 | E150: =C132*E79/100 -> 1.931818182 | F150: A
B151: Current Limit During Output Short (For Bypass Channel) | C151: =$C$132*C51/100 -> 32.74752475 | D151: =$C$132*D51/100 -> 33.75 | E151: =$C$132*E51/100 -> 34.77272727 | F151: A
B152: TMR Current | C152: =ABS(SpecSheet!G24) -> 192 | D152: =ABS(SpecSheet!H24) -> 202 | E152: =ABS(SpecSheet!I24) -> 212 | F152: uA
B153: TMR Fault Threshold | C153: =SpecSheet!G25 -> 2.028 | D153: =SpecSheet!H25 -> 2.048 | E153: =SpecSheet!I25 -> 2.068 | F153: V
B154: During Output short, Timer will trip after | C154: =C146*E153/C152 -> 20.37249271 | D154: =D146*D153/D152 -> 20.1859802 | E154: =E146*E153/C152 -> 22.51696563 | F154: ms
B156: =_xlfn.CONCAT("DURING STARTUP (Trickle Channe)l: Please check the SOA of the MOSFET to check if selected MOSFET can handle ",ABS(C9),"V and ",D137,"A for ",INT(D138),"ms. Otherwise, try to change the current limit and/or foldback ratio or the MOSFET.") -> DURING STARTUP (Trickle Channe)l: Please check the SOA of the MOSFET to check if selected MOSFET can handle 70V and 1.875A for 70ms. Otherwise, try to change the current limit and/or foldback ratio or the MOSFET.
B157: =_xlfn.CONCAT("DURING OUTPUT SHORT (Trickle Channel): Please check the SOA of the MOSFET to check if selected MOSFET in Trickle Channel can handle ",ABS(C9),"V and ",ROUND(E150,3),"A for ",MAX(INT(E154)),"ms. Otherwise, try to change the current limit and/or foldback ratio or the trickle channel MOSFET.") -> DURING OUTPUT SHORT (Trickle Channel): Please check the SOA of the MOSFET to check if selected MOSFET in Trickle Channel can handle 70V and 1.932A for 22ms. Otherwise, try to change the current limit and/or foldback ratio or the trickle channel MOSFET.
B158: =_xlfn.CONCAT("DURING OUTPUT SHORT (Bypass Channel): Please check the SOA of the MOSFET to check if each selected MOSFET in Bypass Channel can handle ",ABS(C9),"V and ",ROUND(E151,3),"A for ",MAX(INT(E154)),"ms. Otherwise, try to change the current limit and/or foldback ratio or the bypass channel MOSFET.") -> DURING OUTPUT SHORT (Bypass Channel): Please check the SOA of the MOSFET to check if each selected MOSFET in Bypass Channel can handle 70V and 34.773A for 22ms. Otherwise, try to change the current limit and/or foldback ratio or the bypass channel MOSFET.
B160: Start up Mode: dV/dt Control is Enabled
B161: CONTROL_1 [0x0A][6] should be programmed to 1
B163: Desired Inrush Current | D163: 0.6 | F163: A
B164: Calculated Ramp Cap Value | D164: =ABS(SpecSheet!H26)*General!D126*General!D21/D163/1000 -> 325.2179359 | F164: nF
B165: RAMP Cap Value Installed | D165: 370 | F165: nF
B166: Ramp Cap Tolerance | D166: 5 | F166: %
B167: Actual Ramp Cap Value | C167: =(1-(D166/100))*D165 -> 351.5 | D167: =D165 -> 370 | E167: =(1+(D166/100))*D165 -> 388.5 | F167: nF
B168: Actual Inrush Current | C168: =ABS(SpecSheet!G26)*General!C126*General!C21/D165/1000 -> 0.4421987104 | D168: =ABS(SpecSheet!H26)*General!D126*General!D21/D165/1000 -> 0.5273804365 | E168: =ABS(SpecSheet!I26)*General!E126*General!E21/D165/1000 -> 0.6211303982 | F168: A
B169: Foldback Ratio | D169: 20 | G169: Use 10% Foldback when ever possible
B170: CONFIG_1 [0x0D][3:2] should be programmed to value | D170: =IF(D169='Register Map'!$E$54,'Register Map'!$D$54,(IF(D169='Register Map'!$E$57,'Register Map'!$D$57,(IF(D169='Register Map'!$E$55,'Register Map'!$D$55,(IF(D169='Register Map'!$E$56,'Register Map'!$D$56,0))))))) -> 10
B171: Current Limit during Startup | C171: =C79*$D$169/100 -> 0.7277227723 | D171: =D79*$D$169/100 -> 0.75 | E171: =E79*$D$169/100 -> 0.7727272727 | F171: A
B172: =IF(E168>C171,"Inrush current will hit the current limit during start up and make the timer run. If you do not want to hit the current limit during start up, either increase the foldaback ratio or reduce the inrush current by increasing the Ramp cap","") -> 
B173: Time to Charge the Load Capacitor | C173: =General!C21*ABS(C9)/E168/1000 -> 203.4194436 | D173: =General!D21*ABS(C9)/D168/1000 -> 252.1898629 | E173: =General!E21*ABS(C9)/C168/1000 -> 315.808248 | F173: ms
B175: During Output Short: Short into 0 ohm resistor
B176: Current Limit During Output Short (For Trickle Channel) | C176: =ROUND(C79*$D$169/100,3) -> 0.728 | D176: =D79*$D$169/100 -> 0.75 | E176: =ROUND(E79*$D$169/100,3) -> 0.773 | F176: A
B177: Current Limit During Output Short (For Bypass Channel) | C177: =ROUND($D$169/100*C51,3) -> 13.099 | D177: =$D$169/100*D51 -> 13.5 | E177: =ROUND($D$169/100*E51,3) -> 13.909 | F177: A
B178: TMR Current | C178: =ABS(SpecSheet!G23) -> 192 | D178: =ABS(SpecSheet!H23) -> 202 | E178: =ABS(SpecSheet!I23) -> 212 | F178: uA
B179: TMR Fault Threshold | C179: =SpecSheet!G25 -> 2.028 | D179: =SpecSheet!H25 -> 2.048 | E179: =SpecSheet!I25 -> 2.068 | F179: V
B180: TMR Cap Populated | D180: 47 | F180: nF
B181: TMR Cap Tolerance | D181: 5 | F181: %
B182: Timer will trip after | C182: =D180*C179/E178 -> 0.4496037736 | D182: =D180*D179/D178 -> 0.4765148515 | E182: =D180*E179/C178 -> 0.5062291667 | F182: ms
B184: =IF(AND((D168>D171),(D173>C182)),"Device is starting up in Current Limit and Timer is going to expire before output cap is charged up which will not turn on the circuit properly. ","") -> 
B185: =_xlfn.CONCAT("DURING STARTUP (Trickle Channel):Please check the SOA of the MOSFET to check if selected MOSFET can handle ",ABS(C9),"V and ",ROUND(D168,3),"A for ",INT(D173),"ms. Otherwise, try to change the RAMP cap and/or the MOSFET.") -> DURING STARTUP (Trickle Channel):Please check the SOA of the MOSFET to check if selected MOSFET can handle 70V and 0.527A for 252ms. Otherwise, try to change the RAMP cap and/or the MOSFET.
B186: =_xlfn.CONCAT("DURING OUTPUT SHORT (Trickle Channel): Please check the SOA of the MOSFET to check if selected MOSFET in Trickle Channel can handle ",ABS(C9),"V and ",ROUND(E176,3),"A for ",ROUND(E182,3),"ms. Otherwise, try to change the current limit and/or foldback ratio or the MOSFET.") -> DURING OUTPUT SHORT (Trickle Channel): Please check the SOA of the MOSFET to check if selected MOSFET in Trickle Channel can handle 70V and 0.773A for 0.506ms. Otherwise, try to change the current limit and/or foldback ratio or the MOSFET.
B187: =_xlfn.CONCAT("DURING OUTPUT SHORT (bypass Channel): Please check the SOA of the MOSFET to check if selected MOSFET in Bypass Channel can handle ",ABS(C9),"V and ",ROUND(E177,3),"A for ",ROUND(E182,3),"ms. Otherwise, try to change the current limit and/or foldback ratio or the MOSFET.") -> DURING OUTPUT SHORT (bypass Channel): Please check the SOA of the MOSFET to check if selected MOSFET in Bypass Channel can handle 70V and 13.909A for 0.506ms. Otherwise, try to change the current limit and/or foldback ratio or the MOSFET.
B188: Simulate the circuit in LTspice. Use SOAtherm simulation using LTspice to check SOA.
B193: Bill Of Meterials
B194: Component | C194: Value | D194: Units | E194: Quantity | F194: Other Specs
B195: Rs1 | C195: =C71 -> 4 | D195: =D71 -> mΩ | E195: =C73 -> 1.066666667 | F195: =_xlfn.CONCAT(Q38,"%",", ",C64,D64) -> 1%, 0.25W
B196: Rs2 | C196: =C34 -> 2 | D196: =D34 -> mΩ | E196: =C36 -> 9 | F196: =_xlfn.CONCAT(Q38,"%",", ",C28,D28) -> 1%, 0.25W
B197: CTMR | C197: =IF(C127="dv/dt Mode",D180,D144) -> 47 | D197: =IF(C127="dv/dt Mode",F180,F144) -> nF | E197: 1 | F197: =IF(C127="dv/dt Mode",_xlfn.CONCAT(D181,F181,", ","25V"),_xlfn.CONCAT(D145,F145,", ","25V")) -> 5%, 25V
B198: CRAMP | C198: =IF(C127="dv/dt Mode",D165,"Do not Install") -> 370 | D198: =IF(C127="dv/dt Mode",F165,"") -> nF | E198: 1 | F198: =IF(C127="dv/dt Mode",_xlfn.CONCAT(D166,F166,", ","25V"),"") -> 5%, 25V
B199: RA1 | C199: =D88 -> 15 | D199: =F88 -> Ω | E199: 2 | F199: 1%, 0.25W
B200: RA2 | C200: =D90 -> 1 | D200: =F90 -> Ω | E200: 2 | F200: 1%, 0.25W
B201: MOSFET (M1) | C201: =C104 -> PSMN4R8-100BSE | E201: =C109 -> 1
B202: MOSFET (M2) | C202: =C94 -> IPT020N10N3 | E202: =C99 -> 3

Sheet SpecSheet
B2: Topology | C2: LTC4283
C3: LTC4284 Parallel Topology
C4: LTC4284 High Stress Staged Start Topology
C5: LTC4284 Low Stress Staged Start Topology
B7: Datasheet
B8: Symbol | C8: Parameter | D8: Conditions | G8: Min | H8: Typ | I8: Max | J8: Units
B9: Vin | C9: Shunt Regulated Voltage at Vin | D9: Iin +Ivz = 4mA | G9: 10.8 | H9: 11.5 | I9: 12 | J9: V
B10: Iin | C10: Vin Supply Current | D10: Vin = 10.5V | H10: 2.5 | I10: 4 | J10: mA
B11: UVH | C11: Undervoltage Rising Threshold | G11: 2.028 | H11: 2.048 | I11: 2.068 | J11: V
B12: UVL | C12: Undervoltage Falling Threshold | G12: 1.815 | H12: 1.833 | I12: 1.851 | J12: V
B13: OVH | C13: Overvoltage Rising Threshold | G13: 1.392 | H13: 1.406 | I13: 1.42 | J13: V
B14: OV(HYS) | C14: OV Hysteresis | G14: 0.01 | H14: 0.024 | I14: 0.038 | J14: V
B15: Vref | C15: Reference Output Voltage | G15: 1.01 | H15: 1.024 | I15: 1.038 | J15: V
B16: VOUTL | C16: Vout Low Threshold at VOUTH=0.8V | G16: 0.74 | H16: 0.8 | I16: 0.86 | J16: V
B17: ITMR(UP) | C17: TMR Pull Up Current In Current Limit
C18: Onset | D18: DRNS = 0V, TMR = 1V | G18: -1.6 | H18: -2 | I18: -2.5 | J18: uA
C19: Startup in Foldback | D19: dv/dt control diabled, DRNS = 1.8V, TMR = 1V | F19: FB = 00b | G19: -192 | H19: -202 | I19: -212 | J19: uA
F20: FB = 01b | G20: -96 | H20: -102 | I20: -108 | J20: uA
F21: FB = 10b | G21: -39 | H21: -42 | I21: -45 | J21: uA
F22: FB = 11b | G22: -20 | H22: -22 | I22: -24 | J22: uA
C23: Startup in dv/dt | D23: dV/dt Control Enabled, DRNS = 1.8V, TMR = 1V | G23: -192 | H23: -202 | I23: -212 | J23: uA
C24: Hard Short in Normal operation | D24: DRNS = 1.8V, TMR = 1V | G24: -192 | H24: -202 | I24: -212 | J24: uA
B25: VTHMR(TH) | C25: TMR Fault Threshold | D25: TMR Rising | G25: 2.028 | H25: 2.048 | I25: 2.068 | J25: V
B26: Iramp | C26: RAMP Output Current | D26: Startup Only, dV/dt Control Enabled | G26: -2.25 | H26: -2.5 | I26: -2.75 | J26: uA
B27: INTVcc | C27: Internal 5V LDO Voltage | D27: Iloaad = 1mA to 30mA, Iin +Ivz = 35mA | G27: 4.75 | H27: 5.05 | I27: 5.035 | J27: V
B31: Start Up Modes | C31: dv/dt Mode
C32: Current Limit Mode
B34: RTNS DRNS resistor Divider Connected to | C34: Vref
C35: INTVcc

Sheet Register Map
B1: REGISTER MAP
B2: BIT | C2: NAME | D2: OPERATION | G2: DEFAULT
B4: Control_1 (0x0A)
B6: 7 | C6: ON | D6: Turns MOSFET on and off; 1 = turn MOSFET on, 0 = turn MOSFET off | G6: 1
B7: 6 | C7: DVDT | D7: Enables dV/dt inrush control during startup; 1 = enabled, 0 =disabled | G7: 1
B8: 5 | C8: THERM_TMR | D8: Turns 2uA TMR pull down off; 1 = TMR pull-down turned off, 0 =TMR pull-down turned on | G8: 0
B9: 4 | C9: FET_BAD_TURN_OFF | D9: Turns MOSFET off following a FET_BAD_FAULT; 1 = turn MOSFET off, 0 = keep MOSFET on | G9: 1
B10: 3 | C10: PWRGD_RESET_CNTRL | D10: Configures power good reset; 1 = reset by Vout low, 0 = reset by MOSFET off | G10: 1
B11: 2 | C11: PGIO2_ACLB | D11: Configures PGIO2; 1 = PGIO2 as inverted output for active current limit engagement after start up; 0 = normal PGIO2 function configured by 0x10 bit[3:2] | G11: 0
B12: 1 | C12: MASS_WRITE_ENABLE | D12: Enables mass write to all LTC4284S on the I2C bus; 1 = enabled, 0 = disabled | G12: 1
B13: 0 | C13: PAGE_READ_WRITE_ENABLE | D13: Enables I2C page read/write protocols; 1 = enabled, 0 = disabled | G13: 1
B15: Control_2 (0x0B)
B16: 7 | C16: EXT_FAULT_RETRY | D16: Enables auto-retry following an EXT_FAULT; 1 = unlimited retries, 0 = no retry (latch-off) | G16: 0
B17: 6 | C17: PGI_RETRY | D17: Enables auto-retry following an PGI_FAULT; 1 = unlimited retries, 0 = no retry (latch-off) | G17: 0
B18: 5:4 | C18: FET_BAD_RETRY | D18: Configures auto-retry following a FET_BAD_FAULT and MOSFET turn off | G18: 00
D19: FET_BAD_RETRY [5:4] | E19: Number of Retries
D20: 00 | E20: 0 (Latch-Off)
D21: 01 | E21: 1
D22: 10 | E22: 7
D23: 11 | E23: Unlimited
B24: 3:2 | C24: OC_RETRY | D24: Configures auto-retry following a OC_FAULT | G24: 00
D25: OC_RETRY [5:4] | E25: Number of Retries
D26: 00 | E26: 0 (Latch-Off)
D27: 01 | E27: 1
D28: 10 | E28: 7
D29: 11 | E29: Unlimited
B30: 1 | C30: UV_RETRY | D30: Enables auto-retry following a UV_Fault; 1 = unlimited retries, 0 = no retry (latch-off) | G30: 1
B31: 0 | C31: OV_RETRY | D31: Enables auto-retry following a OV_Fault; 1 = unlimited retries, 0 = no retry (latch-off) | G31: 1
B33: Control_1 (0x0D)
B34: 7:4 | C34: ILIM | D34: Configures VILIM and VILIM(FAST) | G34: 0000
D35: ILIM 7:4 | E35: VILIM (V) | F35: VILIM (FAST) (mV)
D36: 0000 | E36: 0.015 | F36: 30
D37: 0001 | E37: 0.016 | F37: 32
D38: 0010 | E38: 0.017 | F38: 34
D39: 0011 | E39: 0.018 | F39: 36
D40: 0100 | E40: 0.019 | F40: 38
D41: 0101 | E41: 0.02 | F41: 40
D42: 0110 | E42: 0.021 | F42: 42
D43: 0111 | E43: 0.022 | F43: 44
D44: 1000 | E44: 0.023 | F44: 46
D45: 1001 | E45: 0.024 | F45: 48
D46: 1010 | E46: 0.025 | F46: 50
D47: 1011 | E47: 0.026 | F47: 52
D48: 1100 | E48: 0.027 | F48: 54
D49: 1101 | E49: 0.028 | F49: 56
D50: 1110 | E50: 0.029 | F50: 58
D51: 1111 | E51: 0.03 | F51: 60
B52: 3:2 | C52: FB | D52: Configures current limit foldback factor for startup and normal operation | G52: 11
D53: FB 3:2 | E53: Foldback Factor, α (% VILIM)
D54: 00 | E54: 100 | F54: (foldback disabled)
D55: 01 | E55: 50
D56: 10 | E56: 20
D57: 11 | E57: 10
B58: 1 | C58: FB_DIS | D58: Disables foldback after startup; 1 = disabled, 0 = enabled. Foldaback during startup is not affected | G58: 0
B59: 0 | C59: LPFB | D59: Enables load power foldback after startup; 1 = enabled, 0 = disabled | G59: 0
B61: Control_2 (0x0E)
B62: 7:6 | C62: VDTH | D62: Configures DRAIN voltage threshold for starting FET bad fault filtering timer, VD,FET(TH) | G62: 11
D63: VDTH7:6 | E63: VD,FET(TH) (V)
D64: 00 | E64: 0.072
D65: 01 | E65: 0.102
D66: 10 | E66: 0.143
D67: 11 | E67: 0.203
B68: 5:4 | C68: FTBD_DL | D68: Configures FET_Bad fault filtering timer delay, tDL(FETBAD) | G68: 00
D69: FTBD_DL 5:4 | E69: tDL(FETBAD) (s)
D70: 00 | E70: 0.256
D71: 01 | E71: 0.512
D72: 10 | E72: 1.02
D73: 11 | E73: 2.05
B74: 3:1 | C74: COOLING_DL | D74: Configures cooling delay preceding each auto retry folowing OC_FAULT, FET_BAD_FAULT ot EXT_FAULT, tDL(RTRY) | G74: 000
D75: COOLING_DL 3:1 | E75: tDL(RTRY) (s)
D76: 000 | E76: .512
D77: 001 | E77: 1.02
D78: 010 | E78: 2.05
D79: 011 | E79: 4.10
D80: 100 | E80: 8.19
D81: 101 | E81: 16.4
D82: 110 | E82: 32.8
D83: 111 | E83: 65.5
B84: 0 | C84: PORB | D84: Resest to 0 upon power on reset. Write this bit to 1 to use it as power-on reset indicator; 1 = power -on reset has not occurred, 0 = power-on reset occurred | G84: 0
